Workbook

Sheet Display
F2: CQG SPDR® S&P® Financial Select Sector ETF Performance | AB2: =RTD("cqg.rtd", ,"SystemInfo", "Linetime") -> 45698.6975
B5: Exchange Traded Funds Performance | S5: Top 15 Performing Companies
B6: Symbol | C6: Description | H6: Last | I6: NC | J6: %NC | K6: NC/ATR | L6: Open | M6: High | N6: Low | O6: Volume | Q6: Ratio
B7: XLF | C7: =RTD("cqg.rtd", ,"ContractData",B7, "LongDescription",, "T") -> Financial Select Sector SPDR | H7: =RTD("cqg.rtd", ,"ContractData",B7, "LastTradeToday",, "T") -> 51.41 | I7: =RTD("cqg.rtd", ,"ContractData",B7, "NetLastTradeToday",, "T") -> -0.41 | J7: =IFERROR(RTD("cqg.rtd", ,"ContractData",B7, "PerCentNetLastTrade",, "T")/100,"") -> -0.007912003088 | K7: =IFERROR(I7/RTD("cqg.rtd",,"StudyData",B7, "ATR", "MaType=Sim,Period=10", "ATR","D","-1","ALL",,,"FALSE","T")/100,"") -> -0.006765676568 | L7: =RTD("cqg.rtd", ,"ContractData",B7, "OPen",, "T") -> 51.91 | M7: =RTD("cqg.rtd", ,"ContractData", B7, "HIgh",, "T") -> 51.97 | N7: =RTD("cqg.rtd", ,"ContractData",B7, "LOw",, "T") -> 51.19 | O7: =RTD("cqg.rtd", ,"ContractData",B7, "T_CVol",, "T") -> 37916864 | Q7: =IFERROR(O7/RTD("cqg.rtd",,"StudyData",B7, "MA", "InputChoice=Vol,MAType=Sim,Period=21", "MA","D","-1","all",,,,"T"),"") -> 0.8617484367
B8: SPY | C8: =RTD("cqg.rtd", ,"ContractData",B8, "LongDescription",, "T") -> SPDR S&P 500 | H8: =RTD("cqg.rtd", ,"ContractData",B8, "LastTradeToday",, "T") -> 604.38 | I8: =RTD("cqg.rtd", ,"ContractData",B8, "NetLastTradeToday",, "T") -> 4.08 | J8: =IFERROR(RTD("cqg.rtd", ,"ContractData",B8, "PerCentNetLastTrade",, "T")/100,"") -> 0.006791284518 | K8: =IFERROR(I8/RTD("cqg.rtd",,"StudyData",B8, "ATR", "MaType=Sim,Period=10", "ATR","D","-1","ALL",,,"FALSE","T")/100,"") -> 0.005393971444 | L8: =RTD("cqg.rtd", ,"ContractData",B8, "OPen",, "T") -> 604.03 | M8: =RTD("cqg.rtd", ,"ContractData", B8, "HIgh",, "T") -> 605.49 | N8: =RTD("cqg.rtd", ,"ContractData",B8, "LOw",, "T") -> 602.74 | O8: =RTD("cqg.rtd", ,"ContractData",B8, "T_CVol",, "T") -> 25872995 | Q8: =IFERROR(O8/RTD("cqg.rtd",,"StudyData",B8, "MA", "InputChoice=Vol,MAType=Sim,Period=21", "MA","D","-1","all",,,,"T"),"") -> 0.5350323797
B9: S.MSFT | C9: =RTD("cqg.rtd", ,"ContractData",B9, "LongDescription",, "T") -> Microsoft Corporation | H9: =RTD("cqg.rtd", ,"ContractData",B9, "LastTradeToday",, "T") -> 412.22 | I9: =RTD("cqg.rtd", ,"ContractData",B9, "NetLastTradeToday",, "T") -> 2.47 | J9: =IFERROR(RTD("cqg.rtd", ,"ContractData",B9, "PerCentNetLastTrade",, "T")/100,"") -> 0.006028065894 | K9: =IFERROR(I9/RTD("cqg.rtd",,"StudyData",B9, "ATR", "MaType=Sim,Period=10", "ATR","D","-1","ALL",,,"FALSE","T")/100,"") -> 0.002263770507 | L9: =RTD("cqg.rtd", ,"ContractData",B9, "OPen",, "T") -> 413.71 | M9: =RTD("cqg.rtd", ,"ContractData", B9, "HIgh",, "T") -> 415.46 | N9: =RTD("cqg.rtd", ,"ContractData",B9, "LOw",, "T") -> 410.92 | O9: =RTD("cqg.rtd", ,"ContractData",B9, "T_CVol",, "T") -> 20788747 | Q9: =IFERROR(O9/RTD("cqg.rtd",,"StudyData",B9, "MA", "InputChoice=Vol,MAType=Sim,Period=21", "MA","D","-1","all",,,,"T"),"") -> 0.8872623397
B10: S.AAPL | C10: =RTD("cqg.rtd", ,"ContractData",B10, "LongDescription",, "T") -> Apple Inc | H10: =RTD("cqg.rtd", ,"ContractData",B10, "LastTradeToday",, "T") -> 227.65 | I10: =RTD("cqg.rtd", ,"ContractData",B10, "NetLastTradeToday",, "T") -> 0.02 | J10: =IFERROR(RTD("cqg.rtd", ,"ContractData",B10, "PerCentNetLastTrade",, "T")/100,"") -> 8.786188112e-05 | K10: =IFERROR(I10/RTD("cqg.rtd",,"StudyData",B10, "ATR", "MaType=Sim,Period=10", "ATR","D","-1","ALL",,,"FALSE","T")/100,"") -> 2.69179004e-05 | L10: =RTD("cqg.rtd", ,"ContractData",B10, "OPen",, "T") -> 229.57 | M10: =RTD("cqg.rtd", ,"ContractData", B10, "HIgh",, "T") -> 230.58 | N10: =RTD("cqg.rtd", ,"ContractData",B10, "LOw",, "T") -> 227.2 | O10: =RTD("cqg.rtd", ,"ContractData",B10, "T_CVol",, "T") -> 33020309 | Q10: =IFERROR(O10/RTD("cqg.rtd",,"StudyData",B10, "MA", "InputChoice=Vol,MAType=Sim,Period=21", "MA","D","-1","all",,,,"T"),"") -> 0.5565964871
B11: KBE | C11: =RTD("cqg.rtd", ,"ContractData",B11, "LongDescription",, "T") -> SPDR S&P Bank ETF | H11: =RTD("cqg.rtd", ,"ContractData",B11, "LastTradeToday",, "T") -> 58.62 | I11: =RTD("cqg.rtd", ,"ContractData",B11, "NetLastTradeToday",, "T") -> -0.64 | J11: =IFERROR(RTD("cqg.rtd", ,"ContractData",B11, "PerCentNetLastTrade",, "T")/100,"") -> -0.010799865 | K11: =IFERROR(I11/RTD("cqg.rtd",,"StudyData",B11, "ATR", "MaType=Sim,Period=10", "ATR","D","-1","ALL",,,"FALSE","T")/100,"") -> -0.005594405594 | L11: =RTD("cqg.rtd", ,"ContractData",B11, "OPen",, "T") -> 59.45 | M11: =RTD("cqg.rtd", ,"ContractData", B11, "HIgh",, "T") -> 59.48 | N11: =RTD("cqg.rtd", ,"ContractData",B11, "LOw",, "T") -> 58.55 | O11: =RTD("cqg.rtd", ,"ContractData",B11, "T_CVol",, "T") -> 1012514 | Q11: =IFERROR(O11/RTD("cqg.rtd",,"StudyData",B11, "MA", "InputChoice=Vol,MAType=Sim,Period=21", "MA","D","-1","all",,,,"T"),"") -> 0.4615742899
B12: IWF | C12: =RTD("cqg.rtd", ,"ContractData",B12, "LongDescription",, "T") -> iShares Russell 1000 Growth ETF | H12: =RTD("cqg.rtd", ,"ContractData",B12, "LastTradeToday",, "T") -> 412.26 | I12: =RTD("cqg.rtd", ,"ContractData",B12, "NetLastTradeToday",, "T") -> 4.15 | J12: =IFERROR(RTD("cqg.rtd", ,"ContractData",B12, "PerCentNetLastTrade",, "T")/100,"") -> 0.01016882703 | K12: =IFERROR(I12/RTD("cqg.rtd",,"StudyData",B12, "ATR", "MaType=Sim,Period=10", "ATR","D","-1","ALL",,,"FALSE","T")/100,"") -> 0.005515683147 | L12: =RTD("cqg.rtd", ,"ContractData",B12, "OPen",, "T") -> 410.98 | M12: =RTD("cqg.rtd", ,"ContractData", B12, "HIgh",, "T") -> 413.32 | N12: =RTD("cqg.rtd", ,"ContractData",B12, "LOw",, "T") -> 410.49 | O12: =RTD("cqg.rtd", ,"ContractData",B12, "T_CVol",, "T") -> 738793 | Q12: =IFERROR(O12/RTD("cqg.rtd",,"StudyData",B12, "MA", "InputChoice=Vol,MAType=Sim,Period=21", "MA","D","-1","all",,,,"T"),"") -> 0.4370202546
B13: IWO | C13: =RTD("cqg.rtd", ,"ContractData",B13, "LongDescription",, "T") -> iShares Russell 2000 Growth ETF | H13: =RTD("cqg.rtd", ,"ContractData",B13, "LastTradeToday",, "T") -> 297.57 | I13: =RTD("cqg.rtd", ,"ContractData",B13, "NetLastTradeToday",, "T") -> 1.37 | J13: =IFERROR(RTD("cqg.rtd", ,"ContractData",B13, "PerCentNetLastTrade",, "T")/100,"") -> 0.004625253207 | K13: =IFERROR(I13/RTD("cqg.rtd",,"StudyData",B13, "ATR", "MaType=Sim,Period=10", "ATR","D","-1","ALL",,,"FALSE","T")/100,"") -> 0.002460930483 | L13: =RTD("cqg.rtd", ,"ContractData",B13, "OPen",, "T") -> 297.77 | M13: =RTD("cqg.rtd", ,"ContractData", B13, "HIgh",, "T") -> 298.36 | N13: =RTD("cqg.rtd", ,"ContractData",B13, "LOw",, "T") -> 296.25 | O13: =RTD("cqg.rtd", ,"ContractData",B13, "T_CVol",, "T") -> 195243 | Q13: =IFERROR(O13/RTD("cqg.rtd",,"StudyData",B13, "MA", "InputChoice=Vol,MAType=Sim,Period=21", "MA","D","-1","all",,,,"T"),"") -> 0.560148001
B14: EP | C14: =RTD("cqg.rtd", ,"ContractData",B14, "LongDescription",, "T") -> E-Mini S&P 500, Mar 25 | H14: =RTD("cqg.rtd", ,"ContractData",B14, "LastTradeToday",, "T") ->  | I14: =RTD("cqg.rtd", ,"ContractData",B14, "NetLastTradeToday",, "T") ->  | J14: =IFERROR(RTD("cqg.rtd", ,"ContractData",B14, "PerCentNetLastTrade",, "T")/100,"") ->  | K14: =IFERROR(I14/RTD("cqg.rtd",,"StudyData",B14, "ATR", "MaType=Sim,Period=10", "ATR","D","-1","ALL",,,"FALSE","T")/100,"") ->  | L14: =RTD("cqg.rtd", ,"ContractData",B14, "OPen",, "T") ->  | M14: =RTD("cqg.rtd", ,"ContractData", B14, "HIgh",, "T") ->  | N14: =RTD("cqg.rtd", ,"ContractData",B14, "LOw",, "T") ->  | O14: =RTD("cqg.rtd", ,"ContractData",B14, "T_CVol",, "T") -> 0 | Q14: =IFERROR(O14/RTD("cqg.rtd",,"StudyData",B14, "MA", "InputChoice=Vol,MAType=Sim,Period=21", "MA","D","-1","all",,,,"T"),"") -> 0
B15: XLE | C15: =RTD("cqg.rtd", ,"ContractData",B15, "LongDescription",, "T") -> Energy Select Sector SPDR | H15: =RTD("cqg.rtd", ,"ContractData",B15, "LastTradeToday",, "T") -> 90.51 | I15: =RTD("cqg.rtd", ,"ContractData",B15, "NetLastTradeToday",, "T") -> 1.95 | J15: =IFERROR(RTD("cqg.rtd", ,"ContractData",B15, "PerCentNetLastTrade",, "T")/100,"") -> 0.02201897019 | K15: =IFERROR(I15/RTD("cqg.rtd",,"StudyData",B15, "ATR", "MaType=Sim,Period=10", "ATR","D","-1","ALL",,,"FALSE","T")/100,"") -> 0.01141018139 | L15: =RTD("cqg.rtd", ,"ContractData",B15, "OPen",, "T") -> 89.35 | M15: =RTD("cqg.rtd", ,"ContractData", B15, "HIgh",, "T") -> 90.66 | N15: =RTD("cqg.rtd", ,"ContractData",B15, "LOw",, "T") -> 89.35 | O15: =RTD("cqg.rtd", ,"ContractData",B15, "T_CVol",, "T") -> 12930840 | Q15: =IFERROR(O15/RTD("cqg.rtd",,"StudyData",B15, "MA", "InputChoice=Vol,MAType=Sim,Period=21", "MA","D","-1","all",,,,"T"),"") -> 0.7653853797
B16: RSP | C16: =RTD("cqg.rtd", ,"ContractData",B16, "LongDescription",, "T") -> Invesco S&P 500 Equal Weight ETF | H16: =RTD("cqg.rtd", ,"ContractData",B16, "LastTradeToday",, "T") -> 180.73 | I16: =RTD("cqg.rtd", ,"ContractData",B16, "NetLastTradeToday",, "T") -> 0.51 | J16: =IFERROR(RTD("cqg.rtd", ,"ContractData",B16, "PerCentNetLastTrade",, "T")/100,"") -> 0.002829874598 | K16: =IFERROR(I16/RTD("cqg.rtd",,"StudyData",B16, "ATR", "MaType=Sim,Period=10", "ATR","D","-1","ALL",,,"FALSE","T")/100,"") -> 0.002699841186 | L16: =RTD("cqg.rtd", ,"ContractData",B16, "OPen",, "T") -> 181.03 | M16: =RTD("cqg.rtd", ,"ContractData", B16, "HIgh",, "T") -> 181.1 | N16: =RTD("cqg.rtd", ,"ContractData",B16, "LOw",, "T") -> 180.08 | O16: =RTD("cqg.rtd", ,"ContractData",B16, "T_CVol",, "T") -> 5189258 | Q16: =IFERROR(O16/RTD("cqg.rtd",,"StudyData",B16, "MA", "InputChoice=Vol,MAType=Sim,Period=21", "MA","D","-1","all",,,,"T"),"") -> 0.5943545847
C17: Top 15 Description | H17: Last | I17: NC | J17: %NC | K17: NC/ATR | L17: Open | M17: High | N17: Low | O17: Volume | Q17: Ratio
A18: =TRIM(XLF!O1) -> S.US.PFG | B18: News | C18: =IFERROR(RTD("cqg.rtd", ,"ContractData",A18, "LongDescription",, "T")&" ("&RIGHT(A18,LEN(A18)-5)&")","") -> Principal Financial Group (PFG) | H18: =IFERROR(RTD("cqg.rtd", ,"ContractData",A18, "LastTradeToday",, "T"),"") -> 84.38 | I18: =IFERROR(RTD("cqg.rtd", ,"ContractData",A18, "NetLastTradeToday",, "T"),"") -> 2.05 | J18: =IFERROR(RTD("cqg.rtd", ,"ContractData",A18, "PerCentNetLastTrade",, "T")/100,"") -> 0.02489979351 | K18: =IFERROR(I18/RTD("cqg.rtd",,"StudyData",A18, "ATR", "MaType=Sim,Period=10", "ATR","D","-1","ALL",,,"FALSE","T")/100,"") -> 0.01256127451 | L18: =IFERROR(RTD("cqg.rtd", ,"ContractData",A18, "OPen",, "T"),"") -> 82.78 | M18: =IFERROR(RTD("cqg.rtd", ,"ContractData", A18, "HIgh",, "T"),"") -> 85.5 | N18: =IFERROR(RTD("cqg.rtd", ,"ContractData",A18, "LOw",, "T"),"") -> 82.07 | O18: =IFERROR(RTD("cqg.rtd", ,"ContractData",A18, "T_CVol",, "T"),"") -> 2610083 | Q18: =IFERROR(O18/RTD("cqg.rtd",,"StudyData",A18, "MA", "InputChoice=Vol,MAType=Sim,Period=21", "MA","D","-1","all",,,,"T"),"") -> 1.717366092 | R18: =XLF!Q1 -> https://finance.yahoo.com/quote/PFG
A19: =TRIM(XLF!O2) -> S.US.PYPL | B19: News | C19: =IFERROR(RTD("cqg.rtd", ,"ContractData",A19, "LongDescription",, "T")&" ("&RIGHT(A19,LEN(A19)-5)&")","") -> PayPal Holdings, Inc. (PYPL) | H19: =IFERROR(RTD("cqg.rtd", ,"ContractData",A19, "LastTradeToday",, "T"),"") -> 78.24 | I19: =IFERROR(RTD("cqg.rtd", ,"ContractData",A19, "NetLastTradeToday",, "T"),"") -> 0.93 | J19: =IFERROR(RTD("cqg.rtd", ,"ContractData",A19, "PerCentNetLastTrade",, "T")/100,"") -> 0.01202949166 | K19: =IFERROR(I19/RTD("cqg.rtd",,"StudyData",A19, "ATR", "MaType=Sim,Period=10", "ATR","D","-1","ALL",,,"FALSE","T")/100,"") -> 0.002811366385 | L19: =IFERROR(RTD("cqg.rtd", ,"ContractData",A19, "OPen",, "T"),"") -> 78.16 | M19: =IFERROR(RTD("cqg.rtd", ,"ContractData", A19, "HIgh",, "T"),"") -> 78.92 | N19: =IFERROR(RTD("cqg.rtd", ,"ContractData",A19, "LOw",, "T"),"") -> 77.61 | O19: =IFERROR(RTD("cqg.rtd", ,"ContractData",A19, "T_CVol",, "T"),"") -> 11806820 | Q19: =IFERROR(O19/RTD("cqg.rtd",,"StudyData",A19, "MA", "InputChoice=Vol,MAType=Sim,Period=21", "MA","D","-1","all",,,,"T"),"") -> 0.9553364767 | R19: =XLF!Q2 -> https://finance.yahoo.com/quote/PYPL
A20: =TRIM(XLF!O3) -> S.US.V | B20: News | C20: =IFERROR(RTD("cqg.rtd", ,"ContractData",A20, "LongDescription",, "T")&" ("&RIGHT(A20,LEN(A20)-5)&")","") -> Visa Inc. (V) | H20: =IFERROR(RTD("cqg.rtd", ,"ContractData",A20, "LastTradeToday",, "T"),"") -> 351.23 | I20: =IFERROR(RTD("cqg.rtd", ,"ContractData",A20, "NetLastTradeToday",, "T"),"") -> 3.21 | J20: =IFERROR(RTD("cqg.rtd", ,"ContractData",A20, "PerCentNetLastTrade",, "T")/100,"") -> 0.009223607839 | K20: =IFERROR(I20/RTD("cqg.rtd",,"StudyData",A20, "ATR", "MaType=Sim,Period=10", "ATR","D","-1","ALL",,,"FALSE","T")/100,"") -> 0.005812058664 | L20: =IFERROR(RTD("cqg.rtd", ,"ContractData",A20, "OPen",, "T"),"") -> 348.7 | M20: =IFERROR(RTD("cqg.rtd", ,"ContractData", A20, "HIgh",, "T"),"") -> 351.9 | N20: =IFERROR(RTD("cqg.rtd", ,"ContractData",A20, "LOw",, "T"),"") -> 347.7 | O20: =IFERROR(RTD("cqg.rtd", ,"ContractData",A20, "T_CVol",, "T"),"") -> 6059090 | Q20: =IFERROR(O20/RTD("cqg.rtd",,"StudyData",A20, "MA", "InputChoice=Vol,MAType=Sim,Period=21", "MA","D","-1","all",,,,"T"),"") -> 1.026939144 | R20: =XLF!Q3 -> https://finance.yahoo.com/quote/V
A21: =TRIM(XLF!O4) -> S.US.MSCI | B21: News | C21: =IFERROR(RTD("cqg.rtd", ,"ContractData",A21, "LongDescription",, "T")&" ("&RIGHT(A21,LEN(A21)-5)&")","") -> MSCI, Inc. (MSCI) | H21: =IFERROR(RTD("cqg.rtd", ,"ContractData",A21, "LastTradeToday",, "T"),"") -> 583.48 | I21: =IFERROR(RTD("cqg.rtd", ,"ContractData",A21, "NetLastTradeToday",, "T"),"") -> 4.09 | J21: =IFERROR(RTD("cqg.rtd", ,"ContractData",A21, "PerCentNetLastTrade",, "T")/100,"") -> 0.007059148415 | K21: =IFERROR(I21/RTD("cqg.rtd",,"StudyData",A21, "ATR", "MaType=Sim,Period=10", "ATR","D","-1","ALL",,,"FALSE","T")/100,"") -> 0.002382200478 | L21: =IFERROR(RTD("cqg.rtd", ,"ContractData",A21, "OPen",, "T"),"") -> 582.05 | M21: =IFERROR(RTD("cqg.rtd", ,"ContractData", A21, "HIgh",, "T"),"") -> 583.83 | N21: =IFERROR(RTD("cqg.rtd", ,"ContractData",A21, "LOw",, "T"),"") -> 575.59 | O21: =IFERROR(RTD("cqg.rtd", ,"ContractData",A21, "T_CVol",, "T"),"") -> 547416 | Q21: =IFERROR(O21/RTD("cqg.rtd",,"StudyData",A21, "MA", "InputChoice=Vol,MAType=Sim,Period=21", "MA","D","-1","all",,,,"T"),"") -> 0.9900404603 | R21: =XLF!Q4 -> https://finance.yahoo.com/quote/MSCI
A22: =TRIM(XLF!O5) -> S.US.AJG | B22: News | C22: =IFERROR(RTD("cqg.rtd", ,"ContractData",A22, "LongDescription",, "T")&" ("&RIGHT(A22,LEN(A22)-5)&")","") -> Arthur J Gallagher Co (AJG) | H22: =IFERROR(RTD("cqg.rtd", ,"ContractData",A22, "LastTradeToday",, "T"),"") -> 324.29 | I22: =IFERROR(RTD("cqg.rtd", ,"ContractData",A22, "NetLastTradeToday",, "T"),"") -> 1.96 | J22: =IFERROR(RTD("cqg.rtd", ,"ContractData",A22, "PerCentNetLastTrade",, "T")/100,"") -> 0.006080724723 | K22: =IFERROR(I22/RTD("cqg.rtd",,"StudyData",A22, "ATR", "MaType=Sim,Period=10", "ATR","D","-1","ALL",,,"FALSE","T")/100,"") -> 0.003143544507 | L22: =IFERROR(RTD("cqg.rtd", ,"ContractData",A22, "OPen",, "T"),"") -> 322.07 | M22: =IFERROR(RTD("cqg.rtd", ,"ContractData", A22, "HIgh",, "T"),"") -> 324.79 | N22: =IFERROR(RTD("cqg.rtd", ,"ContractData",A22, "LOw",, "T"),"") -> 319.81 | O22: =IFERROR(RTD("cqg.rtd", ,"ContractData",A22, "T_CVol",, "T"),"") -> 1573138 | Q22: =IFERROR(O22/RTD("cqg.rtd",,"StudyData",A22, "MA", "InputChoice=Vol,MAType=Sim,Period=21", "MA","D","-1","all",,,,"T"),"") -> 0.8873087544 | R22: =XLF!Q5 -> https://finance.yahoo.com/quote/AJG
A23: =TRIM(XLF!O6) -> S.US.AIG | B23: News | C23: =IFERROR(RTD("cqg.rtd", ,"ContractData",A23, "LongDescription",, "T")&" ("&RIGHT(A23,LEN(A23)-5)&")","") -> American Intl Group Inc (AIG) | H23: =IFERROR(RTD("cqg.rtd", ,"ContractData",A23, "LastTradeToday",, "T"),"") -> 75.09 | I23: =IFERROR(RTD("cqg.rtd", ,"ContractData",A23, "NetLastTradeToday",, "T"),"") -> 0.4 | J23: =IFERROR(RTD("cqg.rtd", ,"ContractData",A23, "PerCentNetLastTrade",, "T")/100,"") -> 0.005355469273 | K23: =IFERROR(I23/RTD("cqg.rtd",,"StudyData",A23, "ATR", "MaType=Sim,Period=10", "ATR","D","-1","ALL",,,"FALSE","T")/100,"") -> 0.002717391304 | L23: =IFERROR(RTD("cqg.rtd", ,"ContractData",A23, "OPen",, "T"),"") -> 74.81 | M23: =IFERROR(RTD("cqg.rtd", ,"ContractData", A23, "HIgh",, "T"),"") -> 75.43 | N23: =IFERROR(RTD("cqg.rtd", ,"ContractData",A23, "LOw",, "T"),"") -> 74.7 | O23: =IFERROR(RTD("cqg.rtd", ,"ContractData",A23, "T_CVol",, "T"),"") -> 3839529 | Q23: =IFERROR(O23/RTD("cqg.rtd",,"StudyData",A23, "MA", "InputChoice=Vol,MAType=Sim,Period=21", "MA","D","-1","all",,,,"T"),"") -> 0.9641521239 | R23: =XLF!Q6 -> https://finance.yahoo.com/quote/AIG
A24: =TRIM(XLF!O7) -> S.US.MA | B24: News | C24: =IFERROR(RTD("cqg.rtd", ,"ContractData",A24, "LongDescription",, "T")&" ("&RIGHT(A24,LEN(A24)-5)&")","") -> Mastercard Inc. (MA) | H24: =IFERROR(RTD("cqg.rtd", ,"ContractData",A24, "LastTradeToday",, "T"),"") -> 565.49 | I24: =IFERROR(RTD("cqg.rtd", ,"ContractData",A24, "NetLastTradeToday",, "T"),"") -> 2.74 | J24: =IFERROR(RTD("cqg.rtd", ,"ContractData",A24, "PerCentNetLastTrade",, "T")/100,"") -> 0.004868947135 | K24: =IFERROR(I24/RTD("cqg.rtd",,"StudyData",A24, "ATR", "MaType=Sim,Period=10", "ATR","D","-1","ALL",,,"FALSE","T")/100,"") -> 0.002313407633 | L24: =IFERROR(RTD("cqg.rtd", ,"ContractData",A24, "OPen",, "T"),"") -> 565.25 | M24: =IFERROR(RTD("cqg.rtd", ,"ContractData", A24, "HIgh",, "T"),"") -> 567.27 | N24: =IFERROR(RTD("cqg.rtd", ,"ContractData",A24, "LOw",, "T"),"") -> 561 | O24: =IFERROR(RTD("cqg.rtd", ,"ContractData",A24, "T_CVol",, "T"),"") -> 2357342 | Q24: =IFERROR(O24/RTD("cqg.rtd",,"StudyData",A24, "MA", "InputChoice=Vol,MAType=Sim,Period=21", "MA","D","-1","all",,,,"T"),"") -> 0.8278126849 | R24: =XLF!Q7 -> https://finance.yahoo.com/quote/MA
A25: =TRIM(XLF!O8) -> S.US.BRO | B25: News | C25: =IFERROR(RTD("cqg.rtd", ,"ContractData",A25, "LongDescription",, "T")&" ("&RIGHT(A25,LEN(A25)-5)&")","") -> BROWN AND BROWN INC (BRO) | H25: =IFERROR(RTD("cqg.rtd", ,"ContractData",A25, "LastTradeToday",, "T"),"") -> 108.91 | I25: =IFERROR(RTD("cqg.rtd", ,"ContractData",A25, "NetLastTradeToday",, "T"),"") -> 0.33 | J25: =IFERROR(RTD("cqg.rtd", ,"ContractData",A25, "PerCentNetLastTrade",, "T")/100,"") -> 0.003039233745 | K25: =IFERROR(I25/RTD("cqg.rtd",,"StudyData",A25, "ATR", "MaType=Sim,Period=10", "ATR","D","-1","ALL",,,"FALSE","T")/100,"") -> 0.0015625 | L25: =IFERROR(RTD("cqg.rtd", ,"ContractData",A25, "OPen",, "T"),"") -> 108.35 | M25: =IFERROR(RTD("cqg.rtd", ,"ContractData", A25, "HIgh",, "T"),"") -> 109.15 | N25: =IFERROR(RTD("cqg.rtd", ,"ContractData",A25, "LOw",, "T"),"") -> 107.63 | O25: =IFERROR(RTD("cqg.rtd", ,"ContractData",A25, "T_CVol",, "T"),"") -> 2077204 | Q25: =IFERROR(O25/RTD("cqg.rtd",,"StudyData",A25, "MA", "InputChoice=Vol,MAType=Sim,Period=21", "MA","D","-1","all",,,,"T"),"") -> 1.234350295 | R25: =XLF!Q8 -> https://finance.yahoo.com/quote/BRO
A26: =TRIM(XLF!O9) -> S.US.MMC | B26: News | C26: =IFERROR(RTD("cqg.rtd", ,"ContractData",A26, "LongDescription",, "T")&" ("&RIGHT(A26,LEN(A26)-5)&")","") -> Marsh & McLennan Cos Inc (MMC) | H26: =IFERROR(RTD("cqg.rtd", ,"ContractData",A26, "LastTradeToday",, "T"),"") -> 228.05 | I26: =IFERROR(RTD("cqg.rtd", ,"ContractData",A26, "NetLastTradeToday",, "T"),"") -> 0.65 | J26: =IFERROR(RTD("cqg.rtd", ,"ContractData",A26, "PerCentNetLastTrade",, "T")/100,"") -> 0.002858399296 | K26: =IFERROR(I26/RTD("cqg.rtd",,"StudyData",A26, "ATR", "MaType=Sim,Period=10", "ATR","D","-1","ALL",,,"FALSE","T")/100,"") -> 0.001532296087 | L26: =IFERROR(RTD("cqg.rtd", ,"ContractData",A26, "OPen",, "T"),"") -> 227.37 | M26: =IFERROR(RTD("cqg.rtd", ,"ContractData", A26, "HIgh",, "T"),"") -> 228.47 | N26: =IFERROR(RTD("cqg.rtd", ,"ContractData",A26, "LOw",, "T"),"") -> 225.45 | O26: =IFERROR(RTD("cqg.rtd", ,"ContractData",A26, "T_CVol",, "T"),"") -> 1698714 | Q26: =IFERROR(O26/RTD("cqg.rtd",,"StudyData",A26, "MA", "InputChoice=Vol,MAType=Sim,Period=21", "MA","D","-1","all",,,,"T"),"") -> 0.6968666897 | R26: =XLF!Q9 -> https://finance.yahoo.com/quote/MMC
A27: =TRIM(XLF!O10) -> S.US.FI | B27: News | C27: =IFERROR(RTD("cqg.rtd", ,"ContractData",A27, "LongDescription",, "T")&" ("&RIGHT(A27,LEN(A27)-5)&")","") -> Fiserv, Inc. (FI) | H27: =IFERROR(RTD("cqg.rtd", ,"ContractData",A27, "LastTradeToday",, "T"),"") -> 230.65 | I27: =IFERROR(RTD("cqg.rtd", ,"ContractData",A27, "NetLastTradeToday",, "T"),"") -> 0.59 | J27: =IFERROR(RTD("cqg.rtd", ,"ContractData",A27, "PerCentNetLastTrade",, "T")/100,"") -> 0.002564548379 | K27: =IFERROR(I27/RTD("cqg.rtd",,"StudyData",A27, "ATR", "MaType=Sim,Period=10", "ATR","D","-1","ALL",,,"FALSE","T")/100,"") -> 0.0009479434447 | L27: =IFERROR(RTD("cqg.rtd", ,"ContractData",A27, "OPen",, "T"),"") -> 229.68 | M27: =IFERROR(RTD("cqg.rtd", ,"ContractData", A27, "HIgh",, "T"),"") -> 231.49 | N27: =IFERROR(RTD("cqg.rtd", ,"ContractData",A27, "LOw",, "T"),"") -> 229.03 | O27: =IFERROR(RTD("cqg.rtd", ,"ContractData",A27, "T_CVol",, "T"),"") -> 2907399 | Q27: =IFERROR(O27/RTD("cqg.rtd",,"StudyData",A27, "MA", "InputChoice=Vol,MAType=Sim,Period=21", "MA","D","-1","all",,,,"T"),"") -> 1.054234854 | R27: =XLF!Q10 -> https://finance.yahoo.com/quote/FI | S27: Bottom 15 Performing Companies
A28: =TRIM(XLF!O11) -> S.US.MCO | B28: News | C28: =IFERROR(RTD("cqg.rtd", ,"ContractData",A28, "LongDescription",, "T")&" ("&RIGHT(A28,LEN(A28)-5)&")","") -> Moodys Corp (MCO) | H28: =IFERROR(RTD("cqg.rtd", ,"ContractData",A28, "LastTradeToday",, "T"),"") -> 504.23 | I28: =IFERROR(RTD("cqg.rtd", ,"ContractData",A28, "NetLastTradeToday",, "T"),"") -> 0.93 | J28: =IFERROR(RTD("cqg.rtd", ,"ContractData",A28, "PerCentNetLastTrade",, "T")/100,"") -> 0.00184780449 | K28: =IFERROR(I28/RTD("cqg.rtd",,"StudyData",A28, "ATR", "MaType=Sim,Period=10", "ATR","D","-1","ALL",,,"FALSE","T")/100,"") -> 0.001047179372 | L28: =IFERROR(RTD("cqg.rtd", ,"ContractData",A28, "OPen",, "T"),"") -> 505.42 | M28: =IFERROR(RTD("cqg.rtd", ,"ContractData", A28, "HIgh",, "T"),"") -> 505.5 | N28: =IFERROR(RTD("cqg.rtd", ,"ContractData",A28, "LOw",, "T"),"") -> 498 | O28: =IFERROR(RTD("cqg.rtd", ,"ContractData",A28, "T_CVol",, "T"),"") -> 847872 | Q28: =IFERROR(O28/RTD("cqg.rtd",,"StudyData",A28, "MA", "InputChoice=Vol,MAType=Sim,Period=21", "MA","D","-1","all",,,,"T"),"") -> 1.231083239 | R28: =XLF!Q11 -> https://finance.yahoo.com/quote/MCO
A29: =TRIM(XLF!O12) -> S.US.ICE | B29: News | C29: =IFERROR(RTD("cqg.rtd", ,"ContractData",A29, "LongDescription",, "T")&" ("&RIGHT(A29,LEN(A29)-5)&")","") -> Intercontinental, Inc. (ICE) | H29: =IFERROR(RTD("cqg.rtd", ,"ContractData",A29, "LastTradeToday",, "T"),"") -> 167.12 | I29: =IFERROR(RTD("cqg.rtd", ,"ContractData",A29, "NetLastTradeToday",, "T"),"") -> 0.29 | J29: =IFERROR(RTD("cqg.rtd", ,"ContractData",A29, "PerCentNetLastTrade",, "T")/100,"") -> 0.001738296469 | K29: =IFERROR(I29/RTD("cqg.rtd",,"StudyData",A29, "ATR", "MaType=Sim,Period=10", "ATR","D","-1","ALL",,,"FALSE","T")/100,"") -> 0.0008276255708 | L29: =IFERROR(RTD("cqg.rtd", ,"ContractData",A29, "OPen",, "T"),"") -> 167.31 | M29: =IFERROR(RTD("cqg.rtd", ,"ContractData", A29, "HIgh",, "T"),"") -> 167.75 | N29: =IFERROR(RTD("cqg.rtd", ,"ContractData",A29, "LOw",, "T"),"") -> 165.77 | O29: =IFERROR(RTD("cqg.rtd", ,"ContractData",A29, "T_CVol",, "T"),"") -> 3650161 | Q29: =IFERROR(O29/RTD("cqg.rtd",,"StudyData",A29, "MA", "InputChoice=Vol,MAType=Sim,Period=21", "MA","D","-1","all",,,,"T"),"") -> 1.116256618 | R29: =XLF!Q12 -> https://finance.yahoo.com/quote/ICE
A30: =TRIM(XLF!O13) -> S.US.GPN | B30: News | C30: =IFERROR(RTD("cqg.rtd", ,"ContractData",A30, "LongDescription",, "T")&" ("&RIGHT(A30,LEN(A30)-5)&")","") -> Global Payments (GPN) | H30: =IFERROR(RTD("cqg.rtd", ,"ContractData",A30, "LastTradeToday",, "T"),"") -> 109.62 | I30: =IFERROR(RTD("cqg.rtd", ,"ContractData",A30, "NetLastTradeToday",, "T"),"") -> 0.02 | J30: =IFERROR(RTD("cqg.rtd", ,"ContractData",A30, "PerCentNetLastTrade",, "T")/100,"") -> 0.0001824817518 | K30: =IFERROR(I30/RTD("cqg.rtd",,"StudyData",A30, "ATR", "MaType=Sim,Period=10", "ATR","D","-1","ALL",,,"FALSE","T")/100,"") -> 8.996851102e-05 | L30: =IFERROR(RTD("cqg.rtd", ,"ContractData",A30, "OPen",, "T"),"") -> 110.02 | M30: =IFERROR(RTD("cqg.rtd", ,"ContractData", A30, "HIgh",, "T"),"") -> 110.48 | N30: =IFERROR(RTD("cqg.rtd", ,"ContractData",A30, "LOw",, "T"),"") -> 109.27 | O30: =IFERROR(RTD("cqg.rtd", ,"ContractData",A30, "T_CVol",, "T"),"") -> 1426393 | Q30: =IFERROR(O30/RTD("cqg.rtd",,"StudyData",A30, "MA", "InputChoice=Vol,MAType=Sim,Period=21", "MA","D","-1","all",,,,"T"),"") -> 0.8925507475 | R30: =XLF!Q13 -> https://finance.yahoo.com/quote/GPN
A31: =TRIM(XLF!O14) -> S.US.JKHY | B31: News | C31: =IFERROR(RTD("cqg.rtd", ,"ContractData",A31, "LongDescription",, "T")&" ("&RIGHT(A31,LEN(A31)-5)&")","") -> Jack Henry/Associates Inc (JKHY) | H31: =IFERROR(RTD("cqg.rtd", ,"ContractData",A31, "LastTradeToday",, "T"),"") -> 173.66 | I31: =IFERROR(RTD("cqg.rtd", ,"ContractData",A31, "NetLastTradeToday",, "T"),"") -> -0.15 | J31: =IFERROR(RTD("cqg.rtd", ,"ContractData",A31, "PerCentNetLastTrade",, "T")/100,"") -> -0.0008630113342 | K31: =IFERROR(I31/RTD("cqg.rtd",,"StudyData",A31, "ATR", "MaType=Sim,Period=10", "ATR","D","-1","ALL",,,"FALSE","T")/100,"") -> -0.0004136789851 | L31: =IFERROR(RTD("cqg.rtd", ,"ContractData",A31, "OPen",, "T"),"") -> 174 | M31: =IFERROR(RTD("cqg.rtd", ,"ContractData", A31, "HIgh",, "T"),"") -> 174.75 | N31: =IFERROR(RTD("cqg.rtd", ,"ContractData",A31, "LOw",, "T"),"") -> 173.08 | O31: =IFERROR(RTD("cqg.rtd", ,"ContractData",A31, "T_CVol",, "T"),"") -> 454923 | Q31: =IFERROR(O31/RTD("cqg.rtd",,"StudyData",A31, "MA", "InputChoice=Vol,MAType=Sim,Period=21", "MA","D","-1","all",,,,"T"),"") -> 0.7155771599 | R31: =XLF!Q14 -> https://finance.yahoo.com/quote/JKHY
A32: =TRIM(XLF!O15) -> S.US.WTW | B32: News | C32: =IFERROR(RTD("cqg.rtd", ,"ContractData",A32, "LongDescription",, "T")&" ("&RIGHT(A32,LEN(A32)-5)&")","") -> Willis Towers Watson (WTW) | H32: =IFERROR(RTD("cqg.rtd", ,"ContractData",A32, "LastTradeToday",, "T"),"") -> 325.18 | I32: =IFERROR(RTD("cqg.rtd", ,"ContractData",A32, "NetLastTradeToday",, "T"),"") -> -0.61 | J32: =IFERROR(RTD("cqg.rtd", ,"ContractData",A32, "PerCentNetLastTrade",, "T")/100,"") -> -0.001872371773 | K32: =IFERROR(I32/RTD("cqg.rtd",,"StudyData",A32, "ATR", "MaType=Sim,Period=10", "ATR","D","-1","ALL",,,"FALSE","T")/100,"") -> -0.0006915315724 | L32: =IFERROR(RTD("cqg.rtd", ,"ContractData",A32, "OPen",, "T"),"") -> 326.79 | M32: =IFERROR(RTD("cqg.rtd", ,"ContractData", A32, "HIgh",, "T"),"") -> 326.79 | N32: =IFERROR(RTD("cqg.rtd", ,"ContractData",A32, "LOw",, "T"),"") -> 321.59 | O32: =IFERROR(RTD("cqg.rtd", ,"ContractData",A32, "T_CVol",, "T"),"") -> 451371 | Q32: =IFERROR(O32/RTD("cqg.rtd",,"StudyData",A32, "MA", "InputChoice=Vol,MAType=Sim,Period=21", "MA","D","-1","all",,,,"T"),"") -> 0.8124634591 | R32: =XLF!Q15 -> https://finance.yahoo.com/quote/WTW
C33: Bottom 15 Description | H33: Last | I33: NC | J33: %NC | K33: NC/ATR | L33: Open | M33: High | N33: Low | O33: Volume | Q33: Ratio
A34: =TRIM(XLF!O59) -> S.US.KEY | B34: News | C34: =IFERROR(RTD("cqg.rtd", ,"ContractData",A34, "LongDescription",, "T")&" ("&RIGHT(A34,LEN(A34)-5)&")","") -> KeyCorp (KEY) | H34: =IFERROR(RTD("cqg.rtd", ,"ContractData",A34, "LastTradeToday",, "T"),"") -> 17.51 | I34: =IFERROR(RTD("cqg.rtd", ,"ContractData",A34, "NetLastTradeToday",, "T"),"") -> -0.33 | J34: =IFERROR(RTD("cqg.rtd", ,"ContractData",A34, "PerCentNetLastTrade",, "T")/100,"") -> -0.01849775785 | K34: =IFERROR(I34/RTD("cqg.rtd",,"StudyData",A34, "ATR", "MaType=Sim,Period=10", "ATR","D","-1","ALL",,,"FALSE","T")/100,"") -> -0.007783018868 | L34: =IFERROR(RTD("cqg.rtd", ,"ContractData",A34, "OPen",, "T"),"") -> 17.92 | M34: =IFERROR(RTD("cqg.rtd", ,"ContractData", A34, "HIgh",, "T"),"") -> 17.92 | N34: =IFERROR(RTD("cqg.rtd", ,"ContractData",A34, "LOw",, "T"),"") -> 17.5 | O34: =IFERROR(RTD("cqg.rtd", ,"ContractData",A34, "T_CVol",, "T"),"") -> 8148132 | Q34: =IFERROR(O34/RTD("cqg.rtd",,"StudyData",A34, "MA", "InputChoice=Vol,MAType=Sim,Period=21", "MA","D","-1","all",,,,"T"),"") -> 0.5685991057 | R34: =XLF!Q59 -> https://finance.yahoo.com/quote/KEY
A35: =TRIM(XLF!O60) -> S.US.ERIE | B35: News | C35: =IFERROR(RTD("cqg.rtd", ,"ContractData",A35, "LongDescription",, "T")&" ("&RIGHT(A35,LEN(A35)-5)&")","") -> Erie Indemnity Co (ERIE) | H35: =IFERROR(RTD("cqg.rtd", ,"ContractData",A35, "LastTradeToday",, "T"),"") -> 404.43 | I35: =IFERROR(RTD("cqg.rtd", ,"ContractData",A35, "NetLastTradeToday",, "T"),"") -> -7.81 | J35: =IFERROR(RTD("cqg.rtd", ,"ContractData",A35, "PerCentNetLastTrade",, "T")/100,"") -> -0.0189452746 | K35: =IFERROR(I35/RTD("cqg.rtd",,"StudyData",A35, "ATR", "MaType=Sim,Period=10", "ATR","D","-1","ALL",,,"FALSE","T")/100,"") -> -0.006248 | L35: =IFERROR(RTD("cqg.rtd", ,"ContractData",A35, "OPen",, "T"),"") -> 414.42 | M35: =IFERROR(RTD("cqg.rtd", ,"ContractData", A35, "HIgh",, "T"),"") -> 414.76 | N35: =IFERROR(RTD("cqg.rtd", ,"ContractData",A35, "LOw",, "T"),"") -> 402.7 | O35: =IFERROR(RTD("cqg.rtd", ,"ContractData",A35, "T_CVol",, "T"),"") -> 98687 | Q35: =IFERROR(O35/RTD("cqg.rtd",,"StudyData",A35, "MA", "InputChoice=Vol,MAType=Sim,Period=21", "MA","D","-1","all",,,,"T"),"") -> 0.4748714823 | R35: =XLF!Q60 -> https://finance.yahoo.com/quote/ERIE
A36: =TRIM(XLF!O61) -> S.US.MS | B36: News | C36: =IFERROR(RTD("cqg.rtd", ,"ContractData",A36, "LongDescription",, "T")&" ("&RIGHT(A36,LEN(A36)-5)&")","") -> Morgan Stanley (MS) | H36: =IFERROR(RTD("cqg.rtd", ,"ContractData",A36, "LastTradeToday",, "T"),"") -> 137.31 | I36: =IFERROR(RTD("cqg.rtd", ,"ContractData",A36, "NetLastTradeToday",, "T"),"") -> -2.67 | J36: =IFERROR(RTD("cqg.rtd", ,"ContractData",A36, "PerCentNetLastTrade",, "T")/100,"") -> -0.01907415345 | K36: =IFERROR(I36/RTD("cqg.rtd",,"StudyData",A36, "ATR", "MaType=Sim,Period=10", "ATR","D","-1","ALL",,,"FALSE","T")/100,"") -> -0.009659913169 | L36: =IFERROR(RTD("cqg.rtd", ,"ContractData",A36, "OPen",, "T"),"") -> 140.25 | M36: =IFERROR(RTD("cqg.rtd", ,"ContractData", A36, "HIgh",, "T"),"") -> 140.31 | N36: =IFERROR(RTD("cqg.rtd", ,"ContractData",A36, "LOw",, "T"),"") -> 135.61 | O36: =IFERROR(RTD("cqg.rtd", ,"ContractData",A36, "T_CVol",, "T"),"") -> 5515919 | Q36: =IFERROR(O36/RTD("cqg.rtd",,"StudyData",A36, "MA", "InputChoice=Vol,MAType=Sim,Period=21", "MA","D","-1","all",,,,"T"),"") -> 0.7606080397 | R36: =XLF!Q61 -> https://finance.yahoo.com/quote/MS
A37: =TRIM(XLF!O62) -> S.US.ALL | B37: News | C37: =IFERROR(RTD("cqg.rtd", ,"ContractData",A37, "LongDescription",, "T")&" ("&RIGHT(A37,LEN(A37)-5)&")","") -> Allstate Corporation (ALL) | H37: =IFERROR(RTD("cqg.rtd", ,"ContractData",A37, "LastTradeToday",, "T"),"") -> 186.58 | I37: =IFERROR(RTD("cqg.rtd", ,"ContractData",A37, "NetLastTradeToday",, "T"),"") -> -3.66 | J37: =IFERROR(RTD("cqg.rtd", ,"ContractData",A37, "PerCentNetLastTrade",, "T")/100,"") -> -0.01923885618 | K37: =IFERROR(I37/RTD("cqg.rtd",,"StudyData",A37, "ATR", "MaType=Sim,Period=10", "ATR","D","-1","ALL",,,"FALSE","T")/100,"") -> -0.008358072619 | L37: =IFERROR(RTD("cqg.rtd", ,"ContractData",A37, "OPen",, "T"),"") -> 189.73 | M37: =IFERROR(RTD("cqg.rtd", ,"ContractData", A37, "HIgh",, "T"),"") -> 190.14 | N37: =IFERROR(RTD("cqg.rtd", ,"ContractData",A37, "LOw",, "T"),"") -> 185.53 | O37: =IFERROR(RTD("cqg.rtd", ,"ContractData",A37, "T_CVol",, "T"),"") -> 1544146 | Q37: =IFERROR(O37/RTD("cqg.rtd",,"StudyData",A37, "MA", "InputChoice=Vol,MAType=Sim,Period=21", "MA","D","-1","all",,,,"T"),"") -> 0.8907019443 | R37: =XLF!Q62 -> https://finance.yahoo.com/quote/ALL
A38: =TRIM(XLF!O63) -> S.US.NDAQ | B38: News | C38: =IFERROR(RTD("cqg.rtd", ,"ContractData",A38, "LongDescription",, "T")&" ("&RIGHT(A38,LEN(A38)-5)&")","") -> Nasdaq, Inc. (NDAQ) | H38: =IFERROR(RTD("cqg.rtd", ,"ContractData",A38, "LastTradeToday",, "T"),"") -> 81.21 | I38: =IFERROR(RTD("cqg.rtd", ,"ContractData",A38, "NetLastTradeToday",, "T"),"") -> -1.61 | J38: =IFERROR(RTD("cqg.rtd", ,"ContractData",A38, "PerCentNetLastTrade",, "T")/100,"") -> -0.01943974885 | K38: =IFERROR(I38/RTD("cqg.rtd",,"StudyData",A38, "ATR", "MaType=Sim,Period=10", "ATR","D","-1","ALL",,,"FALSE","T")/100,"") -> -0.008759521219 | L38: =IFERROR(RTD("cqg.rtd", ,"ContractData",A38, "OPen",, "T"),"") -> 83.01 | M38: =IFERROR(RTD("cqg.rtd", ,"ContractData", A38, "HIgh",, "T"),"") -> 83.93 | N38: =IFERROR(RTD("cqg.rtd", ,"ContractData",A38, "LOw",, "T"),"") -> 81.07 | O38: =IFERROR(RTD("cqg.rtd", ,"ContractData",A38, "T_CVol",, "T"),"") -> 2883902 | Q38: =IFERROR(O38/RTD("cqg.rtd",,"StudyData",A38, "MA", "InputChoice=Vol,MAType=Sim,Period=21", "MA","D","-1","all",,,,"T"),"") -> 1.008394398 | R38: =XLF!Q63 -> https://finance.yahoo.com/quote/NDAQ
A39: =TRIM(XLF!O64) -> S.US.WFC | B39: News | C39: =IFERROR(RTD("cqg.rtd", ,"ContractData",A39, "LongDescription",, "T")&" ("&RIGHT(A39,LEN(A39)-5)&")","") -> Wells Fargo & Co New (WFC) | H39: =IFERROR(RTD("cqg.rtd", ,"ContractData",A39, "LastTradeToday",, "T"),"") -> 79.1 | I39: =IFERROR(RTD("cqg.rtd", ,"ContractData",A39, "NetLastTradeToday",, "T"),"") -> -1.57 | J39: =IFERROR(RTD("cqg.rtd", ,"ContractData",A39, "PerCentNetLastTrade",, "T")/100,"") -> -0.0194620057 | K39: =IFERROR(I39/RTD("cqg.rtd",,"StudyData",A39, "ATR", "MaType=Sim,Period=10", "ATR","D","-1","ALL",,,"FALSE","T")/100,"") -> -0.01104855735 | L39: =IFERROR(RTD("cqg.rtd", ,"ContractData",A39, "OPen",, "T"),"") -> 80.46 | M39: =IFERROR(RTD("cqg.rtd", ,"ContractData", A39, "HIgh",, "T"),"") -> 80.57 | N39: =IFERROR(RTD("cqg.rtd", ,"ContractData",A39, "LOw",, "T"),"") -> 78.25 | O39: =IFERROR(RTD("cqg.rtd", ,"ContractData",A39, "T_CVol",, "T"),"") -> 18355126 | Q39: =IFERROR(O39/RTD("cqg.rtd",,"StudyData",A39, "MA", "InputChoice=Vol,MAType=Sim,Period=21", "MA","D","-1","all",,,,"T"),"") -> 1.153775017 | R39: =XLF!Q64 -> https://finance.yahoo.com/quote/WFC
A40: =TRIM(XLF!O65) -> S.US.AXP | B40: News | C40: =IFERROR(RTD("cqg.rtd", ,"ContractData",A40, "LongDescription",, "T")&" ("&RIGHT(A40,LEN(A40)-5)&")","") -> American Express Co (AXP) | H40: =IFERROR(RTD("cqg.rtd", ,"ContractData",A40, "LastTradeToday",, "T"),"") -> 310.26 | I40: =IFERROR(RTD("cqg.rtd", ,"ContractData",A40, "NetLastTradeToday",, "T"),"") -> -6.51 | J40: =IFERROR(RTD("cqg.rtd", ,"ContractData",A40, "PerCentNetLastTrade",, "T")/100,"") -> -0.02055118856 | K40: =IFERROR(I40/RTD("cqg.rtd",,"StudyData",A40, "ATR", "MaType=Sim,Period=10", "ATR","D","-1","ALL",,,"FALSE","T")/100,"") -> -0.01016552155 | L40: =IFERROR(RTD("cqg.rtd", ,"ContractData",A40, "OPen",, "T"),"") -> 318.45 | M40: =IFERROR(RTD("cqg.rtd", ,"ContractData", A40, "HIgh",, "T"),"") -> 318.45 | N40: =IFERROR(RTD("cqg.rtd", ,"ContractData",A40, "LOw",, "T"),"") -> 306.01 | O40: =IFERROR(RTD("cqg.rtd", ,"ContractData",A40, "T_CVol",, "T"),"") -> 3225751 | Q40: =IFERROR(O40/RTD("cqg.rtd",,"StudyData",A40, "MA", "InputChoice=Vol,MAType=Sim,Period=21", "MA","D","-1","all",,,,"T"),"") -> 1.245451158 | R40: =XLF!Q65 -> https://finance.yahoo.com/quote/AXP
A41: =TRIM(XLF!O66) -> S.US.COF | B41: News | C41: =IFERROR(RTD("cqg.rtd", ,"ContractData",A41, "LongDescription",, "T")&" ("&RIGHT(A41,LEN(A41)-5)&")","") -> Capital One Financl Corp (COF) | H41: =IFERROR(RTD("cqg.rtd", ,"ContractData",A41, "LastTradeToday",, "T"),"") -> 198.79 | I41: =IFERROR(RTD("cqg.rtd", ,"ContractData",A41, "NetLastTradeToday",, "T"),"") -> -4.42 | J41: =IFERROR(RTD("cqg.rtd", ,"ContractData",A41, "PerCentNetLastTrade",, "T")/100,"") -> -0.02175089809 | K41: =IFERROR(I41/RTD("cqg.rtd",,"StudyData",A41, "ATR", "MaType=Sim,Period=10", "ATR","D","-1","ALL",,,"FALSE","T")/100,"") -> -0.009780924983 | L41: =IFERROR(RTD("cqg.rtd", ,"ContractData",A41, "OPen",, "T"),"") -> 203.42 | M41: =IFERROR(RTD("cqg.rtd", ,"ContractData", A41, "HIgh",, "T"),"") -> 203.6 | N41: =IFERROR(RTD("cqg.rtd", ,"ContractData",A41, "LOw",, "T"),"") -> 197.98 | O41: =IFERROR(RTD("cqg.rtd", ,"ContractData",A41, "T_CVol",, "T"),"") -> 2595388 | Q41: =IFERROR(O41/RTD("cqg.rtd",,"StudyData",A41, "MA", "InputChoice=Vol,MAType=Sim,Period=21", "MA","D","-1","all",,,,"T"),"") -> 0.7209478819 | R41: =XLF!Q66 -> https://finance.yahoo.com/quote/COF
A42: =TRIM(XLF!O67) -> S.US.ACGL | B42: News | C42: =IFERROR(RTD("cqg.rtd", ,"ContractData",A42, "LongDescription",, "T")&" ("&RIGHT(A42,LEN(A42)-5)&")","") -> Arch Capital Grp Ltd (ACGL) | H42: =IFERROR(RTD("cqg.rtd", ,"ContractData",A42, "LastTradeToday",, "T"),"") -> 91.46 | I42: =IFERROR(RTD("cqg.rtd", ,"ContractData",A42, "NetLastTradeToday",, "T"),"") -> -2.04 | J42: =IFERROR(RTD("cqg.rtd", ,"ContractData",A42, "PerCentNetLastTrade",, "T")/100,"") -> -0.02181818182 | K42: =IFERROR(I42/RTD("cqg.rtd",,"StudyData",A42, "ATR", "MaType=Sim,Period=10", "ATR","D","-1","ALL",,,"FALSE","T")/100,"") -> -0.01095008052 | L42: =IFERROR(RTD("cqg.rtd", ,"ContractData",A42, "OPen",, "T"),"") -> 93.59 | M42: =IFERROR(RTD("cqg.rtd", ,"ContractData", A42, "HIgh",, "T"),"") -> 93.69 | N42: =IFERROR(RTD("cqg.rtd", ,"ContractData",A42, "LOw",, "T"),"") -> 91.23 | O42: =IFERROR(RTD("cqg.rtd", ,"ContractData",A42, "T_CVol",, "T"),"") -> 1980959 | Q42: =IFERROR(O42/RTD("cqg.rtd",,"StudyData",A42, "MA", "InputChoice=Vol,MAType=Sim,Period=21", "MA","D","-1","all",,,,"T"),"") -> 1.023094913 | R42: =XLF!Q67 -> https://finance.yahoo.com/quote/ACGL
A43: =TRIM(XLF!O68) -> S.US.DFS | B43: News | C43: =IFERROR(RTD("cqg.rtd", ,"ContractData",A43, "LongDescription",, "T")&" ("&RIGHT(A43,LEN(A43)-5)&")","") -> Discover Financial Services (DFS) | H43: =IFERROR(RTD("cqg.rtd", ,"ContractData",A43, "LastTradeToday",, "T"),"") -> 195.41 | I43: =IFERROR(RTD("cqg.rtd", ,"ContractData",A43, "NetLastTradeToday",, "T"),"") -> -4.36 | J43: =IFERROR(RTD("cqg.rtd", ,"ContractData",A43, "PerCentNetLastTrade",, "T")/100,"") -> -0.02182509886 | K43: =IFERROR(I43/RTD("cqg.rtd",,"StudyData",A43, "ATR", "MaType=Sim,Period=10", "ATR","D","-1","ALL",,,"FALSE","T")/100,"") -> -0.009519650655 | L43: =IFERROR(RTD("cqg.rtd", ,"ContractData",A43, "OPen",, "T"),"") -> 199.94 | M43: =IFERROR(RTD("cqg.rtd", ,"ContractData", A43, "HIgh",, "T"),"") -> 200 | N43: =IFERROR(RTD("cqg.rtd", ,"ContractData",A43, "LOw",, "T"),"") -> 194.72 | O43: =IFERROR(RTD("cqg.rtd", ,"ContractData",A43, "T_CVol",, "T"),"") -> 974754 | Q43: =IFERROR(O43/RTD("cqg.rtd",,"StudyData",A43, "MA", "InputChoice=Vol,MAType=Sim,Period=21", "MA","D","-1","all",,,,"T"),"") -> 0.6264608945 | R43: =XLF!Q68 -> https://finance.yahoo.com/quote/DFS
A44: =TRIM(XLF!O69) -> S.US.NTRS | B44: News | C44: =IFERROR(RTD("cqg.rtd", ,"ContractData",A44, "LongDescription",, "T")&" ("&RIGHT(A44,LEN(A44)-5)&")","") -> Northern Trust Corp (NTRS) | H44: =IFERROR(RTD("cqg.rtd", ,"ContractData",A44, "LastTradeToday",, "T"),"") -> 111 | I44: =IFERROR(RTD("cqg.rtd", ,"ContractData",A44, "NetLastTradeToday",, "T"),"") -> -2.51 | J44: =IFERROR(RTD("cqg.rtd", ,"ContractData",A44, "PerCentNetLastTrade",, "T")/100,"") -> -0.0221125892 | K44: =IFERROR(I44/RTD("cqg.rtd",,"StudyData",A44, "ATR", "MaType=Sim,Period=10", "ATR","D","-1","ALL",,,"FALSE","T")/100,"") -> -0.0138215859 | L44: =IFERROR(RTD("cqg.rtd", ,"ContractData",A44, "OPen",, "T"),"") -> 113.52 | M44: =IFERROR(RTD("cqg.rtd", ,"ContractData", A44, "HIgh",, "T"),"") -> 113.57 | N44: =IFERROR(RTD("cqg.rtd", ,"ContractData",A44, "LOw",, "T"),"") -> 110.87 | O44: =IFERROR(RTD("cqg.rtd", ,"ContractData",A44, "T_CVol",, "T"),"") -> 947198 | Q44: =IFERROR(O44/RTD("cqg.rtd",,"StudyData",A44, "MA", "InputChoice=Vol,MAType=Sim,Period=21", "MA","D","-1","all",,,,"T"),"") -> 0.7767759769 | R44: =XLF!Q69 -> https://finance.yahoo.com/quote/NTRS
A45: =TRIM(XLF!O70) -> S.US.SCHW | B45: News | C45: =IFERROR(RTD("cqg.rtd", ,"ContractData",A45, "LongDescription",, "T")&" ("&RIGHT(A45,LEN(A45)-5)&")","") -> Charles Schwab Corp (SCHW) | H45: =IFERROR(RTD("cqg.rtd", ,"ContractData",A45, "LastTradeToday",, "T"),"") -> 81.17 | I45: =IFERROR(RTD("cqg.rtd", ,"ContractData",A45, "NetLastTradeToday",, "T"),"") -> -2.01 | J45: =IFERROR(RTD("cqg.rtd", ,"ContractData",A45, "PerCentNetLastTrade",, "T")/100,"") -> -0.02416446261 | K45: =IFERROR(I45/RTD("cqg.rtd",,"StudyData",A45, "ATR", "MaType=Sim,Period=10", "ATR","D","-1","ALL",,,"FALSE","T")/100,"") -> -0.01302657161 | L45: =IFERROR(RTD("cqg.rtd", ,"ContractData",A45, "OPen",, "T"),"") -> 81.55 | M45: =IFERROR(RTD("cqg.rtd", ,"ContractData", A45, "HIgh",, "T"),"") -> 81.76 | N45: =IFERROR(RTD("cqg.rtd", ,"ContractData",A45, "LOw",, "T"),"") -> 80.26 | O45: =IFERROR(RTD("cqg.rtd", ,"ContractData",A45, "T_CVol",, "T"),"") -> 17729632 | Q45: =IFERROR(O45/RTD("cqg.rtd",,"StudyData",A45, "MA", "InputChoice=Vol,MAType=Sim,Period=21", "MA","D","-1","all",,,,"T"),"") -> 2.087953296 | R45: =XLF!Q70 -> https://finance.yahoo.com/quote/SCHW
A46: =TRIM(XLF!O71) -> S.US.MKTX | B46: News | C46: =IFERROR(RTD("cqg.rtd", ,"ContractData",A46, "LongDescription",, "T")&" ("&RIGHT(A46,LEN(A46)-5)&")","") -> MarketAxcess Inc (MKTX) | H46: =IFERROR(RTD("cqg.rtd", ,"ContractData",A46, "LastTradeToday",, "T"),"") -> 196.2 | I46: =IFERROR(RTD("cqg.rtd", ,"ContractData",A46, "NetLastTradeToday",, "T"),"") -> -5.17 | J46: =IFERROR(RTD("cqg.rtd", ,"ContractData",A46, "PerCentNetLastTrade",, "T")/100,"") -> -0.02567413219 | K46: =IFERROR(I46/RTD("cqg.rtd",,"StudyData",A46, "ATR", "MaType=Sim,Period=10", "ATR","D","-1","ALL",,,"FALSE","T")/100,"") -> -0.007202563388 | L46: =IFERROR(RTD("cqg.rtd", ,"ContractData",A46, "OPen",, "T"),"") -> 201.13 | M46: =IFERROR(RTD("cqg.rtd", ,"ContractData", A46, "HIgh",, "T"),"") -> 202.54 | N46: =IFERROR(RTD("cqg.rtd", ,"ContractData",A46, "LOw",, "T"),"") -> 196.04 | O46: =IFERROR(RTD("cqg.rtd", ,"ContractData",A46, "T_CVol",, "T"),"") -> 591613 | Q46: =IFERROR(O46/RTD("cqg.rtd",,"StudyData",A46, "MA", "InputChoice=Vol,MAType=Sim,Period=21", "MA","D","-1","all",,,,"T"),"") -> 1.105813081 | R46: =XLF!Q71 -> https://finance.yahoo.com/quote/MKTX
A47: =TRIM(XLF!O72) -> S.US.SYF | B47: News | C47: =IFERROR(RTD("cqg.rtd", ,"ContractData",A47, "LongDescription",, "T")&" ("&RIGHT(A47,LEN(A47)-5)&")","") -> Synchrony Financial (SYF) | H47: =IFERROR(RTD("cqg.rtd", ,"ContractData",A47, "LastTradeToday",, "T"),"") -> 65.52 | I47: =IFERROR(RTD("cqg.rtd", ,"ContractData",A47, "NetLastTradeToday",, "T"),"") -> -1.97 | J47: =IFERROR(RTD("cqg.rtd", ,"ContractData",A47, "PerCentNetLastTrade",, "T")/100,"") -> -0.02918950956 | K47: =IFERROR(I47/RTD("cqg.rtd",,"StudyData",A47, "ATR", "MaType=Sim,Period=10", "ATR","D","-1","ALL",,,"FALSE","T")/100,"") -> -0.007982171799 | L47: =IFERROR(RTD("cqg.rtd", ,"ContractData",A47, "OPen",, "T"),"") -> 68.05 | M47: =IFERROR(RTD("cqg.rtd", ,"ContractData", A47, "HIgh",, "T"),"") -> 68.05 | N47: =IFERROR(RTD("cqg.rtd", ,"ContractData",A47, "LOw",, "T"),"") -> 64.61 | O47: =IFERROR(RTD("cqg.rtd", ,"ContractData",A47, "T_CVol",, "T"),"") -> 5396059 | Q47: =IFERROR(O47/RTD("cqg.rtd",,"StudyData",A47, "MA", "InputChoice=Vol,MAType=Sim,Period=21", "MA","D","-1","all",,,,"T"),"") -> 1.410763481 | R47: =XLF!Q72 -> https://finance.yahoo.com/quote/SYF
A48: =TRIM(XLF!O73) -> S.US.RJF | B48: News | C48: =IFERROR(RTD("cqg.rtd", ,"ContractData",A48, "LongDescription",, "T")&" ("&RIGHT(A48,LEN(A48)-5)&")","") -> Raymond James Fincl Inc (RJF) | H48: =IFERROR(RTD("cqg.rtd", ,"ContractData",A48, "LastTradeToday",, "T"),"") -> 162.42 | I48: =IFERROR(RTD("cqg.rtd", ,"ContractData",A48, "NetLastTradeToday",, "T"),"") -> -5.01 | J48: =IFERROR(RTD("cqg.rtd", ,"ContractData",A48, "PerCentNetLastTrade",, "T")/100,"") -> -0.02992295288 | K48: =IFERROR(I48/RTD("cqg.rtd",,"StudyData",A48, "ATR", "MaType=Sim,Period=10", "ATR","D","-1","ALL",,,"FALSE","T")/100,"") -> -0.01096040254 | L48: =IFERROR(RTD("cqg.rtd", ,"ContractData",A48, "OPen",, "T"),"") -> 167.58 | M48: =IFERROR(RTD("cqg.rtd", ,"ContractData", A48, "HIgh",, "T"),"") -> 167.72 | N48: =IFERROR(RTD("cqg.rtd", ,"ContractData",A48, "LOw",, "T"),"") -> 161.42 | O48: =IFERROR(RTD("cqg.rtd", ,"ContractData",A48, "T_CVol",, "T"),"") -> 1423326 | Q48: =IFERROR(O48/RTD("cqg.rtd",,"StudyData",A48, "MA", "InputChoice=Vol,MAType=Sim,Period=21", "MA","D","-1","all",,,,"T"),"") -> 1.073989799 | R48: =XLF!Q73 -> https://finance.yahoo.com/quote/RJF
B49: CQG Inc., Copyright © 2025 | E49: Designed by Thom Hartle | H49: Links to finance.yahoo.com | L49: Standard & Poor's®, S&P® and SPDR® are registered trademarks of Standard & Poor’s Financial Services LLC. | Z49: =XLF!AB170 -> 0.1780821918 | AA49: of the stocks in the ETF are higher today

Sheet XLF (hidden)
A1: =RTD("cqg.rtd", ,"ContractData",C1, "LongDescription",, "T") -> Arch Capital Grp Ltd | B1: S.US.ACGL | C1: S.US.ACGL | D1: =RTD("cqg.rtd", ,"ContractData",C1, "LongDescription",, "T") -> Arch Capital Grp Ltd | E1: =RTD("cqg.rtd", ,"ContractData",C1, "Open",, "T") -> 93.59 | F1: =RTD("cqg.rtd", ,"ContractData",C1, "High",, "T") -> 93.69 | G1: =RTD("cqg.rtd", ,"ContractData",C1, "Low",, "T") -> 91.23 | H1: =RTD("cqg.rtd", ,"ContractData",C1, "LastTradeToday",, "T") -> 91.46 | I1: =RTD("cqg.rtd", ,"ContractData",C1, "NetLastTradeToday",, "T") -> -2.04 | J1: =IFERROR(RTD("cqg.rtd", ,"ContractData",C1, "PerCentNetLastTrade",, "T")/100,0) -> -0.02181818182 | K1: =RTD("cqg.rtd", ,"ContractData", C1, "T_CVol",, "T") -> 1980959 | L1: 1 | M1: =RANK($J1,$J$1:J$73)+COUNTIF($J$1:J1,J1)-1 -> 67 | N1: =C1 -> S.US.ACGL | O1: =VLOOKUP($L1,$M$1:$N$73,2,FALSE) -> S.US.PFG | P1: =RTD("cqg.rtd", ,"ContractData",O1, "PerCentNetLastTrade",, "T")/100 -> 0.02489979351 | Q1: ="https://finance.yahoo.com/quote/"&RIGHT(O1,(LEN(O1)-5)) -> https://finance.yahoo.com/quote/PFG | S1: =IF(P1>=0,P1,NA()) -> 0.02489979351 | T1: =IF(P1>=0,NA(),-1*P1) ->  | V1: =IFERROR(RTD("cqg.rtd", ,"ContractData",O1, "LongDescription",, "T"),"") -> Principal Financial Group | Y1: =IFERROR(S1,P1) -> 0.02489979351 | AA1: =IF(S1="NA()",0,1) -> 1 | AB1: =IFERROR(AA1,0) -> 1 | AD1: =IFERROR(S1,"") -> 0.02489979351 | AE1: =IFERROR(T1,"") ->  | AF1: =IF(AE1="","",Y1) -> 
A2: =RTD("cqg.rtd", ,"ContractData",C2, "LongDescription",, "T") -> AFLAC Inc | B2: S.US.AFL | C2: S.US.AFL | D2: =RTD("cqg.rtd", ,"ContractData",C2, "LongDescription",, "T") -> AFLAC Inc | E2: =RTD("cqg.rtd", ,"ContractData",C2, "Open",, "T") -> 103.48 | F2: =RTD("cqg.rtd", ,"ContractData",C2, "High",, "T") -> 103.81 | G2: =RTD("cqg.rtd", ,"ContractData",C2, "Low",, "T") -> 102.45 | H2: =RTD("cqg.rtd", ,"ContractData",C2, "LastTradeToday",, "T") -> 102.61 | I2: =RTD("cqg.rtd", ,"ContractData",C2, "NetLastTradeToday",, "T") -> -0.97 | J2: =IFERROR(RTD("cqg.rtd", ,"ContractData",C2, "PerCentNetLastTrade",, "T")/100,0) -> -0.009364742228 | K2: =RTD("cqg.rtd", ,"ContractData", C2, "T_CVol",, "T") -> 1955554 | L2: =L1+1 -> 2 | M2: =RANK($J2,$J$1:J$73)+COUNTIF($J$1:J2,J2)-1 -> 31 | N2: S.US.AFL | O2: =VLOOKUP($L2,$M$1:$N$73,2,FALSE) -> S.US.PYPL | P2: =RTD("cqg.rtd", ,"ContractData",O2, "PerCentNetLastTrade",, "T")/100 -> 0.01202949166 | Q2: ="https://finance.yahoo.com/quote/"&RIGHT(O2,(LEN(O2)-5)) -> https://finance.yahoo.com/quote/PYPL | S2: =IF(P2>=0,P2,NA()) -> 0.01202949166 | T2: =IF(P2>=0,NA(),-1*P2) ->  | V2: =IFERROR(RTD("cqg.rtd", ,"ContractData",O2, "LongDescription",, "T"),"") -> PayPal Holdings, Inc. | Y2: =IFERROR(S2,P2) -> 0.01202949166 | AA2: =IF(S2="NA()",0,1) -> 1 | AB2: =IFERROR(AA2,0) -> 1 | AD2: =IFERROR(S2,"") -> 0.01202949166 | AF2: =IF(AE2="","",Y2) -> 
A3: =RTD("cqg.rtd", ,"ContractData",C3, "LongDescription",, "T") -> American Intl Group Inc | B3: S.US.AIG | C3: S.US.AIG | D3: =RTD("cqg.rtd", ,"ContractData",C3, "LongDescription",, "T") -> American Intl Group Inc | E3: =RTD("cqg.rtd", ,"ContractData",C3, "Open",, "T") -> 74.81 | F3: =RTD("cqg.rtd", ,"ContractData",C3, "High",, "T") -> 75.43 | G3: =RTD("cqg.rtd", ,"ContractData",C3, "Low",, "T") -> 74.7 | H3: =RTD("cqg.rtd", ,"ContractData",C3, "LastTradeToday",, "T") -> 75.09 | I3: =RTD("cqg.rtd", ,"ContractData",C3, "NetLastTradeToday",, "T") -> 0.4 | J3: =IFERROR(RTD("cqg.rtd", ,"ContractData",C3, "PerCentNetLastTrade",, "T")/100,0) -> 0.005355469273 | K3: =RTD("cqg.rtd", ,"ContractData", C3, "T_CVol",, "T") -> 3839529 | L3: =L2+1 -> 3 | M3: =RANK($J3,$J$1:J$73)+COUNTIF($J$1:J3,J3)-1 -> 6 | N3: S.US.AIG | O3: S.US.V | P3: =RTD("cqg.rtd", ,"ContractData",O3, "PerCentNetLastTrade",, "T")/100 -> 0.009223607839 | Q3: https://finance.yahoo.com/quote/V | S3: 0.009223607839 | V3: =IFERROR(RTD("cqg.rtd", ,"ContractData",O3, "LongDescription",, "T"),"") -> Visa Inc. | Y3: 0.009223607839 | AA3: 1 | AB3: 1 | AD3: 0.009223607839
A4: =RTD("cqg.rtd", ,"ContractData",C4, "LongDescription",, "T") -> Assurant Inc | B4: S.US.AIZ | C4: S.US.AIZ | D4: =RTD("cqg.rtd", ,"ContractData",C4, "LongDescription",, "T") -> Assurant Inc | E4: =RTD("cqg.rtd", ,"ContractData",C4, "Open",, "T") -> 215.43 | F4: =RTD("cqg.rtd", ,"ContractData",C4, "High",, "T") -> 215.43 | G4: =RTD("cqg.rtd", ,"ContractData",C4, "Low",, "T") -> 212.29 | H4: =RTD("cqg.rtd", ,"ContractData",C4, "LastTradeToday",, "T") -> 212.53 | I4: =RTD("cqg.rtd", ,"ContractData",C4, "NetLastTradeToday",, "T") -> -2.63 | J4: =IFERROR(RTD("cqg.rtd", ,"ContractData",C4, "PerCentNetLastTrade",, "T")/100,0) -> -0.01222346161 | K4: =RTD("cqg.rtd", ,"ContractData", C4, "T_CVol",, "T") -> 459431 | L4: 4 | M4: =RANK($J4,$J$1:J$73)+COUNTIF($J$1:J4,J4)-1 -> 44 | N4: S.US.AIZ | O4: S.US.MSCI | P4: =RTD("cqg.rtd", ,"ContractData",O4, "PerCentNetLastTrade",, "T")/100 -> 0.007059148415 | Q4: https://finance.yahoo.com/quote/MSCI | S4: 0.007059148415 | V4: =IFERROR(RTD("cqg.rtd", ,"ContractData",O4, "LongDescription",, "T"),"") -> MSCI, Inc. | Y4: 0.007059148415 | AA4: 1 | AB4: 1 | AD4: 0.007059148415
A5: =RTD("cqg.rtd", ,"ContractData",C5, "LongDescription",, "T") -> Arthur J Gallagher Co | B5: S.US.AJG | C5: S.US.AJG | D5: =RTD("cqg.rtd", ,"ContractData",C5, "LongDescription",, "T") -> Arthur J Gallagher Co | E5: =RTD("cqg.rtd", ,"ContractData",C5, "Open",, "T") -> 322.07 | F5: =RTD("cqg.rtd", ,"ContractData",C5, "High",, "T") -> 324.79 | G5: =RTD("cqg.rtd", ,"ContractData",C5, "Low",, "T") -> 319.81 | H5: =RTD("cqg.rtd", ,"ContractData",C5, "LastTradeToday",, "T") -> 324.29 | I5: =RTD("cqg.rtd", ,"ContractData",C5, "NetLastTradeToday",, "T") -> 1.96 | J5: =IFERROR(RTD("cqg.rtd", ,"ContractData",C5, "PerCentNetLastTrade",, "T")/100,0) -> 0.006080724723 | K5: =RTD("cqg.rtd", ,"ContractData", C5, "T_CVol",, "T") -> 1573138 | L5: 5 | M5: =RANK($J5,$J$1:J$73)+COUNTIF($J$1:J5,J5)-1 -> 5 | N5: S.US.AJG | O5: S.US.AJG | P5: =RTD("cqg.rtd", ,"ContractData",O5, "PerCentNetLastTrade",, "T")/100 -> 0.006080724723 | Q5: https://finance.yahoo.com/quote/AJG | S5: 0.006080724723 | V5: =IFERROR(RTD("cqg.rtd", ,"ContractData",O5, "LongDescription",, "T"),"") -> Arthur J Gallagher Co | Y5: 0.006080724723 | AA5: 1 | AB5: 1 | AD5: 0.006080724723
A6: =RTD("cqg.rtd", ,"ContractData",C6, "LongDescription",, "T") -> Allstate Corporation | B6: S.US.ALL | C6: S.US.ALL | D6: =RTD("cqg.rtd", ,"ContractData",C6, "LongDescription",, "T") -> Allstate Corporation | E6: =RTD("cqg.rtd", ,"ContractData",C6, "Open",, "T") -> 189.73 | F6: =RTD("cqg.rtd", ,"ContractData",C6, "High",, "T") -> 190.14 | G6: =RTD("cqg.rtd", ,"ContractData",C6, "Low",, "T") -> 185.53 | H6: =RTD("cqg.rtd", ,"ContractData",C6, "LastTradeToday",, "T") -> 186.58 | I6: =RTD("cqg.rtd", ,"ContractData",C6, "NetLastTradeToday",, "T") -> -3.66 | J6: =IFERROR(RTD("cqg.rtd", ,"ContractData",C6, "PerCentNetLastTrade",, "T")/100,0) -> -0.01923885618 | K6: =RTD("cqg.rtd", ,"ContractData", C6, "T_CVol",, "T") -> 1544146 | L6: 6 | M6: =RANK($J6,$J$1:J$73)+COUNTIF($J$1:J6,J6)-1 -> 62 | N6: S.US.ALL | O6: S.US.AIG | P6: =RTD("cqg.rtd", ,"ContractData",O6, "PerCentNetLastTrade",, "T")/100 -> 0.005355469273 | Q6: https://finance.yahoo.com/quote/AIG | S6: 0.005355469273 | V6: =IFERROR(RTD("cqg.rtd", ,"ContractData",O6, "LongDescription",, "T"),"") -> American Intl Group Inc | Y6: 0.005355469273 | AA6: 1 | AB6: 1 | AD6: 0.005355469273
A7: =RTD("cqg.rtd", ,"ContractData",C7, "LongDescription",, "T") -> Ameriprise Financial Inc | B7: S.US.AMP | C7: S.US.AMP | D7: =RTD("cqg.rtd", ,"ContractData",C7, "LongDescription",, "T") -> Ameriprise Financial Inc | E7: =RTD("cqg.rtd", ,"ContractData",C7, "Open",, "T") -> 538.91 | F7: =RTD("cqg.rtd", ,"ContractData",C7, "High",, "T") -> 539.83 | G7: =RTD("cqg.rtd", ,"ContractData",C7, "Low",, "T") -> 522.42 | H7: =RTD("cqg.rtd", ,"ContractData",C7, "LastTradeToday",, "T") -> 529.18 | I7: =RTD("cqg.rtd", ,"ContractData",C7, "NetLastTradeToday",, "T") -> -9.42 | J7: =IFERROR(RTD("cqg.rtd", ,"ContractData",C7, "PerCentNetLastTrade",, "T")/100,0) -> -0.01748978834 | K7: =RTD("cqg.rtd", ,"ContractData", C7, "T_CVol",, "T") -> 613741 | L7: 7 | M7: =RANK($J7,$J$1:J$73)+COUNTIF($J$1:J7,J7)-1 -> 58 | N7: S.US.AMP | O7: S.US.MA | P7: =RTD("cqg.rtd", ,"ContractData",O7, "PerCentNetLastTrade",, "T")/100 -> 0.004868947135 | Q7: https://finance.yahoo.com/quote/MA | S7: 0.004868947135 | V7: =IFERROR(RTD("cqg.rtd", ,"ContractData",O7, "LongDescription",, "T"),"") -> Mastercard Inc. | Y7: 0.004868947135 | AA7: 1 | AB7: 1 | AD7: 0.004868947135
A8: =RTD("cqg.rtd", ,"ContractData",C8, "LongDescription",, "T") -> AON Corporation | B8: S.US.AON | C8: S.US.AON | D8: =RTD("cqg.rtd", ,"ContractData",C8, "LongDescription",, "T") -> AON Corporation | E8: =RTD("cqg.rtd", ,"ContractData",C8, "Open",, "T") -> 386.36 | F8: =RTD("cqg.rtd", ,"ContractData",C8, "High",, "T") -> 387 | G8: =RTD("cqg.rtd", ,"ContractData",C8, "Low",, "T") -> 383.12 | H8: =RTD("cqg.rtd", ,"ContractData",C8, "LastTradeToday",, "T") -> 385.6 | I8: =RTD("cqg.rtd", ,"ContractData",C8, "NetLastTradeToday",, "T") -> -0.91 | J8: =IFERROR(RTD("cqg.rtd", ,"ContractData",C8, "PerCentNetLastTrade",, "T")/100,0) -> -0.002354402215 | K8: =RTD("cqg.rtd", ,"ContractData", C8, "T_CVol",, "T") -> 686358 | L8: 8 | M8: =RANK($J8,$J$1:J$73)+COUNTIF($J$1:J8,J8)-1 -> 17 | N8: S.US.AON | O8: S.US.BRO | P8: =(RTD("cqg.rtd",,"ContractData",O8,"LastTradeToday",,"T")-RTD("cqg.rtd",,"ContractData",O8,"Y_Close",,"T"))/RTD("cqg.rtd",,"ContractData",O8,"Y_Close",,"T") -> 0.003039233745 | Q8: https://finance.yahoo.com/quote/BRO | S8: 0.003039233745 | V8: =IFERROR(RTD("cqg.rtd", ,"ContractData",O8, "LongDescription",, "T"),"") -> BROWN AND BROWN INC | Y8: 0.003039233745 | AA8: 1 | AB8: 1 | AD8: 0.003039233745
A9: =RTD("cqg.rtd", ,"ContractData",C9, "LongDescription",, "T") -> Apollo Global Management, LLC | B9: S.US.APO | C9: S.US.APO | D9: =RTD("cqg.rtd", ,"ContractData",C9, "LongDescription",, "T") -> Apollo Global Management, LLC | E9: =RTD("cqg.rtd", ,"ContractData",C9, "Open",, "T") -> 164.49 | F9: =RTD("cqg.rtd", ,"ContractData",C9, "High",, "T") -> 164.76 | G9: =RTD("cqg.rtd", ,"ContractData",C9, "Low",, "T") -> 160.79 | H9: =RTD("cqg.rtd", ,"ContractData",C9, "LastTradeToday",, "T") -> 162.17 | I9: =RTD("cqg.rtd", ,"ContractData",C9, "NetLastTradeToday",, "T") -> -1.28 | J9: =IFERROR(RTD("cqg.rtd", ,"ContractData",C9, "PerCentNetLastTrade",, "T")/100,0) -> -0.007831141022 | K9: =RTD("cqg.rtd", ,"ContractData", C9, "T_CVol",, "T") -> 2165151 | L9: 9 | M9: =RANK($J9,$J$1:J$73)+COUNTIF($J$1:J9,J9)-1 -> 27 | N9: S.US.APO | O9: S.US.MMC | P9: =RTD("cqg.rtd", ,"ContractData",O9, "PerCentNetLastTrade",, "T")/100 -> 0.002858399296 | Q9: https://finance.yahoo.com/quote/MMC | S9: 0.002858399296 | V9: =IFERROR(RTD("cqg.rtd", ,"ContractData",O9, "LongDescription",, "T"),"") -> Marsh & McLennan Cos Inc | Y9: 0.002858399296 | AA9: 1 | AB9: 1 | AD9: 0.002858399296
A10: =RTD("cqg.rtd", ,"ContractData",C10, "LongDescription",, "T") -> American Express Co | B10: S.US.AXP | C10: S.US.AXP | D10: =RTD("cqg.rtd", ,"ContractData",C10, "LongDescription",, "T") -> American Express Co | E10: =RTD("cqg.rtd", ,"ContractData",C10, "Open",, "T") -> 318.45 | F10: =RTD("cqg.rtd", ,"ContractData",C10, "High",, "T") -> 318.45 | G10: =RTD("cqg.rtd", ,"ContractData",C10, "Low",, "T") -> 306.01 | H10: =RTD("cqg.rtd", ,"ContractData",C10, "LastTradeToday",, "T") -> 310.26 | I10: =RTD("cqg.rtd", ,"ContractData",C10, "NetLastTradeToday",, "T") -> -6.51 | J10: =IFERROR(RTD("cqg.rtd", ,"ContractData",C10, "PerCentNetLastTrade",, "T")/100,0) -> -0.02055118856 | K10: =RTD("cqg.rtd", ,"ContractData", C10, "T_CVol",, "T") -> 3225751 | L10: 10 | M10: =RANK($J10,$J$1:J$73)+COUNTIF($J$1:J10,J10)-1 -> 65 | N10: S.US.AXP | O10: S.US.FI | P10: =RTD("cqg.rtd", ,"ContractData",O10, "PerCentNetLastTrade",, "T")/100 -> 0.002564548379 | Q10: https://finance.yahoo.com/quote/FI | S10: 0.002564548379 | V10: =IFERROR(RTD("cqg.rtd", ,"ContractData",O10, "LongDescription",, "T"),"") -> Fiserv, Inc. | Y10: 0.002564548379 | AA10: 1 | AB10: 1 | AD10: 0.002564548379
A11: =RTD("cqg.rtd", ,"ContractData",C11, "LongDescription",, "T") -> Bank of America Corp | B11: S.US.BAC | C11: S.US.BAC | D11: =RTD("cqg.rtd", ,"ContractData",C11, "LongDescription",, "T") -> Bank of America Corp | E11: =RTD("cqg.rtd", ,"ContractData",C11, "Open",, "T") -> 47.48 | F11: =RTD("cqg.rtd", ,"ContractData",C11, "High",, "T") -> 47.55 | G11: =RTD("cqg.rtd", ,"ContractData",C11, "Low",, "T") -> 46.4 | H11: =RTD("cqg.rtd", ,"ContractData",C11, "LastTradeToday",, "T") -> 46.67 | I11: =RTD("cqg.rtd", ,"ContractData",C11, "NetLastTradeToday",, "T") -> -0.73 | J11: =IFERROR(RTD("cqg.rtd", ,"ContractData",C11, "PerCentNetLastTrade",, "T")/100,0) -> -0.01540084388 | K11: =RTD("cqg.rtd", ,"ContractData", C11, "T_CVol",, "T") -> 26720525 | L11: 11 | M11: =RANK($J11,$J$1:J$73)+COUNTIF($J$1:J11,J11)-1 -> 54 | N11: S.US.BAC | O11: S.US.MCO | P11: =RTD("cqg.rtd", ,"ContractData",O11, "PerCentNetLastTrade",, "T")/100 -> 0.00184780449 | Q11: https://finance.yahoo.com/quote/MCO | S11: 0.00184780449 | V11: =IFERROR(RTD("cqg.rtd", ,"ContractData",O11, "LongDescription",, "T"),"") -> Moodys Corp | Y11: 0.00184780449 | AA11: 1 | AB11: 1 | AD11: 0.00184780449
A12: =RTD("cqg.rtd", ,"ContractData",C12, "LongDescription",, "T") -> Franklin Resources Inc | B12: S.US.BEN | C12: S.US.BEN | D12: =RTD("cqg.rtd", ,"ContractData",C12, "LongDescription",, "T") -> Franklin Resources Inc | E12: =RTD("cqg.rtd", ,"ContractData",C12, "Open",, "T") -> 20.5 | F12: =RTD("cqg.rtd", ,"ContractData",C12, "High",, "T") -> 20.56 | G12: =RTD("cqg.rtd", ,"ContractData",C12, "Low",, "T") -> 20.21 | H12: =RTD("cqg.rtd", ,"ContractData",C12, "LastTradeToday",, "T") -> 20.27 | I12: =RTD("cqg.rtd", ,"ContractData",C12, "NetLastTradeToday",, "T") -> -0.16 | J12: =IFERROR(RTD("cqg.rtd", ,"ContractData",C12, "PerCentNetLastTrade",, "T")/100,0) -> -0.007831620166 | K12: =RTD("cqg.rtd", ,"ContractData", C12, "T_CVol",, "T") -> 2941233 | L12: 12 | M12: =RANK($J12,$J$1:J$73)+COUNTIF($J$1:J12,J12)-1 -> 28 | N12: S.US.BEN | O12: S.US.ICE | P12: =RTD("cqg.rtd", ,"ContractData",O12, "PerCentNetLastTrade",, "T")/100 -> 0.001738296469 | Q12: https://finance.yahoo.com/quote/ICE | S12: 0.001738296469 | V12: =IFERROR(RTD("cqg.rtd", ,"ContractData",O12, "LongDescription",, "T"),"") -> Intercontinental, Inc. | Y12: 0.001738296469 | AA12: 1 | AB12: 1 | AD12: 0.001738296469
A13: =RTD("cqg.rtd", ,"ContractData",C13, "LongDescription",, "T") -> Bank of New York Co Inc | B13: S.US.BK | C13: S.US.BK | D13: =RTD("cqg.rtd", ,"ContractData",C13, "LongDescription",, "T") -> Bank of New York Co Inc | E13: =RTD("cqg.rtd", ,"ContractData",C13, "Open",, "T") -> 86.15 | F13: =RTD("cqg.rtd", ,"ContractData",C13, "High",, "T") -> 86.39 | G13: =RTD("cqg.rtd", ,"ContractData",C13, "Low",, "T") -> 84.68 | H13: =RTD("cqg.rtd", ,"ContractData",C13, "LastTradeToday",, "T") -> 85.03 | I13: =RTD("cqg.rtd", ,"ContractData",C13, "NetLastTradeToday",, "T") -> -1.12 | J13: =IFERROR(RTD("cqg.rtd", ,"ContractData",C13, "PerCentNetLastTrade",, "T")/100,0) -> -0.01300058038 | K13: =RTD("cqg.rtd", ,"ContractData", C13, "T_CVol",, "T") -> 2446647 | L13: 13 | M13: =RANK($J13,$J$1:J$73)+COUNTIF($J$1:J13,J13)-1 -> 46 | N13: S.US.BK | O13: S.US.GPN | P13: =RTD("cqg.rtd", ,"ContractData",O13, "PerCentNetLastTrade",, "T")/100 -> 0.0001824817518 | Q13: https://finance.yahoo.com/quote/GPN | S13: 0.0001824817518 | V13: =IFERROR(RTD("cqg.rtd", ,"ContractData",O13, "LongDescription",, "T"),"") -> Global Payments | Y13: 0.0001824817518 | AA13: 1 | AB13: 1 | AD13: 0.0001824817518
A14: =RTD("cqg.rtd", ,"ContractData",C14, "LongDescription",, "T") -> BlackRock, Inc. | B14: S.US.BLK | C14: S.US.BLK | D14: =RTD("cqg.rtd", ,"ContractData",C14, "LongDescription",, "T") -> BlackRock, Inc. | E14: =RTD("cqg.rtd", ,"ContractData",C14, "Open",, "T") -> 995 | F14: =RTD("cqg.rtd", ,"ContractData",C14, "High",, "T") -> 996.34 | G14: =RTD("cqg.rtd", ,"ContractData",C14, "Low",, "T") -> 976.78 | H14: =RTD("cqg.rtd", ,"ContractData",C14, "LastTradeToday",, "T") -> 985.55 | I14: =RTD("cqg.rtd", ,"ContractData",C14, "NetLastTradeToday",, "T") -> -6.49 | J14: =IFERROR(RTD("cqg.rtd", ,"ContractData",C14, "PerCentNetLastTrade",, "T")/100,0) -> -0.006542074916 | K14: =RTD("cqg.rtd", ,"ContractData", C14, "T_CVol",, "T") -> 683614 | L14: 14 | M14: =RANK($J14,$J$1:J$73)+COUNTIF($J$1:J14,J14)-1 -> 23 | N14: S.US.BLK | O14: S.US.JKHY | P14: =RTD("cqg.rtd", ,"ContractData",O14, "PerCentNetLastTrade",, "T")/100 -> -0.0008630113342 | Q14: https://finance.yahoo.com/quote/JKHY | T14: 0.0008630113342 | V14: =IFERROR(RTD("cqg.rtd", ,"ContractData",O14, "LongDescription",, "T"),"") -> Jack Henry/Associates Inc | Y14: -0.0008630113342 | AB14: 0 | AE14: 0.0008630113342 | AF14: -0.0008630113342
A15: =RTD("cqg.rtd", ,"ContractData",C15, "LongDescription",, "T") -> Berkshire Hathaway Inc. ClsB | B15: S.US.BRKB | C15: S.US.BRKB | D15: =RTD("cqg.rtd", ,"ContractData",C15, "LongDescription",, "T") -> Berkshire Hathaway Inc. ClsB | E15: =RTD("cqg.rtd", ,"ContractData",C15, "Open",, "T") -> 473.96 | F15: =RTD("cqg.rtd", ,"ContractData",C15, "High",, "T") -> 474.2 | G15: =RTD("cqg.rtd", ,"ContractData",C15, "Low",, "T") -> 469.37 | H15: =RTD("cqg.rtd", ,"ContractData",C15, "LastTradeToday",, "T") -> 470.17 | I15: =RTD("cqg.rtd", ,"ContractData",C15, "NetLastTradeToday",, "T") -> -2.57 | J15: =IFERROR(RTD("cqg.rtd", ,"ContractData",C15, "PerCentNetLastTrade",, "T")/100,0) -> -0.005436392097 | K15: =RTD("cqg.rtd", ,"ContractData", C15, "T_CVol",, "T") -> 2903539 | L15: 15 | M15: =RANK($J15,$J$1:J$73)+COUNTIF($J$1:J15,J15)-1 -> 21 | N15: S.US.BRKB | O15: S.US.WTW | P15: =RTD("cqg.rtd", ,"ContractData",O15, "PerCentNetLastTrade",, "T")/100 -> -0.001872371773 | Q15: https://finance.yahoo.com/quote/WTW | T15: 0.001872371773 | V15: =IFERROR(RTD("cqg.rtd", ,"ContractData",O15, "LongDescription",, "T"),"") -> Willis Towers Watson | Y15: -0.001872371773 | AB15: 0 | AE15: 0.001872371773 | AF15: -0.001872371773
A16: =RTD("cqg.rtd", ,"ContractData",C16, "LongDescription",, "T") -> BROWN AND BROWN INC | B16: S.US.BRO | C16: S.US.BRO | D16: =RTD("cqg.rtd", ,"ContractData",C16, "LongDescription",, "T") -> BROWN AND BROWN INC | E16: =RTD("cqg.rtd", ,"ContractData",C16, "Open",, "T") -> 108.35 | F16: =RTD("cqg.rtd", ,"ContractData",C16, "High",, "T") -> 109.15 | G16: =RTD("cqg.rtd", ,"ContractData",C16, "Low",, "T") -> 107.63 | H16: =RTD("cqg.rtd", ,"ContractData",C16, "LastTradeToday",, "T") -> 108.91 | I16: =RTD("cqg.rtd", ,"ContractData",C16, "NetLastTradeToday",, "T") -> 0.33 | J16: =IFERROR(RTD("cqg.rtd", ,"ContractData",C16, "PerCentNetLastTrade",, "T")/100,0) -> 0.003039233745 | K16: =RTD("cqg.rtd", ,"ContractData", C16, "T_CVol",, "T") -> 2077204 | L16: 16 | M16: =RANK($J16,$J$1:J$73)+COUNTIF($J$1:J16,J16)-1 -> 8 | N16: S.US.BRO | O16: S.US.CPAY | P16: =RTD("cqg.rtd", ,"ContractData",O16, "PerCentNetLastTrade",, "T")/100 -> -0.001889001224 | Q16: https://finance.yahoo.com/quote/CPAY | T16: 0.001889001224 | V16: =IFERROR(RTD("cqg.rtd", ,"ContractData",O16, "LongDescription",, "T"),"") -> Corpay, Inc. | Y16: -0.001889001224 | AB16: 0 | AE16: 0.001889001224 | AF16: -0.001889001224
A17: =RTD("cqg.rtd", ,"ContractData",C17, "LongDescription",, "T") -> Blackstone Inc. | B17: S.US.BX | C17: S.US.BX | D17: =RTD("cqg.rtd", ,"ContractData",C17, "LongDescription",, "T") -> Blackstone Inc. | E17: =RTD("cqg.rtd", ,"ContractData",C17, "Open",, "T") -> 170.58 | F17: =RTD("cqg.rtd", ,"ContractData",C17, "High",, "T") -> 172.67 | G17: =RTD("cqg.rtd", ,"ContractData",C17, "Low",, "T") -> 166.37 | H17: =RTD("cqg.rtd", ,"ContractData",C17, "LastTradeToday",, "T") -> 168.61 | I17: =RTD("cqg.rtd", ,"ContractData",C17, "NetLastTradeToday",, "T") -> -1.66 | J17: =IFERROR(RTD("cqg.rtd", ,"ContractData",C17, "PerCentNetLastTrade",, "T")/100,0) -> -0.009749221824 | K17: =RTD("cqg.rtd", ,"ContractData", C17, "T_CVol",, "T") -> 2333438 | L17: 17 | M17: =RANK($J17,$J$1:J$73)+COUNTIF($J$1:J17,J17)-1 -> 33 | N17: S.US.BX | O17: S.US.AON | P17: =RTD("cqg.rtd", ,"ContractData",O17, "PerCentNetLastTrade",, "T")/100 -> -0.002354402215 | Q17: https://finance.yahoo.com/quote/AON | T17: 0.002354402215 | V17: =IFERROR(RTD("cqg.rtd", ,"ContractData",O17, "LongDescription",, "T"),"") -> AON Corporation | Y17: -0.002354402215 | AB17: 0 | AE17: 0.002354402215 | AF17: -0.002354402215
A18: =RTD("cqg.rtd", ,"ContractData",C18, "LongDescription",, "T") -> Citigroup Inc | B18: S.US.C | C18: S.US.C | D18: =RTD("cqg.rtd", ,"ContractData",C18, "LongDescription",, "T") -> Citigroup Inc | E18: =RTD("cqg.rtd", ,"ContractData",C18, "Open",, "T") -> 81.63 | F18: =RTD("cqg.rtd", ,"ContractData",C18, "High",, "T") -> 81.82 | G18: =RTD("cqg.rtd", ,"ContractData",C18, "Low",, "T") -> 80.07 | H18: =RTD("cqg.rtd", ,"ContractData",C18, "LastTradeToday",, "T") -> 80.73 | I18: =RTD("cqg.rtd", ,"ContractData",C18, "NetLastTradeToday",, "T") -> -0.99 | J18: =IFERROR(RTD("cqg.rtd", ,"ContractData",C18, "PerCentNetLastTrade",, "T")/100,0) -> -0.01211453744 | K18: =RTD("cqg.rtd", ,"ContractData", C18, "T_CVol",, "T") -> 10678658 | L18: 18 | M18: =RANK($J18,$J$1:J$73)+COUNTIF($J$1:J18,J18)-1 -> 43 | N18: S.US.C | O18: S.US.PGR | P18: =RTD("cqg.rtd", ,"ContractData",O18, "PerCentNetLastTrade",, "T")/100 -> -0.003631284916 | Q18: https://finance.yahoo.com/quote/PGR | T18: 0.003631284916 | V18: =IFERROR(RTD("cqg.rtd", ,"ContractData",O18, "LongDescription",, "T"),"") -> Progressive Corp | Y18: -0.003631284916 | AB18: 0 | AE18: 0.003631284916 | AF18: -0.003631284916
A19: =RTD("cqg.rtd", ,"ContractData",C19, "LongDescription",, "T") -> Chubb Limited | B19: S.US.CB | C19: S.US.CB | D19: =RTD("cqg.rtd", ,"ContractData",C19, "LongDescription",, "T") -> Chubb Limited | E19: =RTD("cqg.rtd", ,"ContractData",C19, "Open",, "T") -> 270 | F19: =RTD("cqg.rtd", ,"ContractData",C19, "High",, "T") -> 270.53 | G19: =RTD("cqg.rtd", ,"ContractData",C19, "Low",, "T") -> 266.18 | H19: =RTD("cqg.rtd", ,"ContractData",C19, "LastTradeToday",, "T") -> 266.58 | I19: =RTD("cqg.rtd", ,"ContractData",C19, "NetLastTradeToday",, "T") -> -3.58 | J19: =IFERROR(RTD("cqg.rtd", ,"ContractData",C19, "PerCentNetLastTrade",, "T")/100,0) -> -0.01325140657 | K19: =RTD("cqg.rtd", ,"ContractData", C19, "T_CVol",, "T") -> 1836550 | L19: 19 | M19: =RANK($J19,$J$1:J$73)+COUNTIF($J$1:J19,J19)-1 -> 48 | N19: S.US.CB | O19: S.US.KKR | P19: =RTD("cqg.rtd", ,"ContractData",O19, "PerCentNetLastTrade",, "T")/100 -> -0.004575735146 | Q19: https://finance.yahoo.com/quote/KKR | T19: 0.004575735146 | V19: =IFERROR(RTD("cqg.rtd", ,"ContractData",O19, "LongDescription",, "T"),"") -> KKR & Co. Inc. | Y19: -0.004575735146 | AB19: 0 | AE19: 0.004575735146 | AF19: -0.004575735146
A20: =RTD("cqg.rtd", ,"ContractData",C20, "LongDescription",, "T") -> Cboe Global Markets, Inc. | B20: S.US.CBOE | C20: S.US.CBOE | D20: =RTD("cqg.rtd", ,"ContractData",C20, "LongDescription",, "T") -> Cboe Global Markets, Inc. | E20: =RTD("cqg.rtd", ,"ContractData",C20, "Open",, "T") -> 213.05 | F20: =RTD("cqg.rtd", ,"ContractData",C20, "High",, "T") -> 216.82 | G20: =RTD("cqg.rtd", ,"ContractData",C20, "Low",, "T") -> 209.61 | H20: =RTD("cqg.rtd", ,"ContractData",C20, "LastTradeToday",, "T") -> 209.71 | I20: =RTD("cqg.rtd", ,"ContractData",C20, "NetLastTradeToday",, "T") -> -1.46 | J20: =IFERROR(RTD("cqg.rtd", ,"ContractData",C20, "PerCentNetLastTrade",, "T")/100,0) -> -0.00691386087 | K20: =RTD("cqg.rtd", ,"ContractData", C20, "T_CVol",, "T") -> 854186 | L20: 20 | M20: =RANK($J20,$J$1:J$73)+COUNTIF($J$1:J20,J20)-1 -> 24 | N20: S.US.CBOE | O20: S.US.TROW | P20: =RTD("cqg.rtd", ,"ContractData",O20, "PerCentNetLastTrade",, "T")/100 -> -0.004721263846 | Q20: https://finance.yahoo.com/quote/TROW | T20: 0.004721263846 | V20: =IFERROR(RTD("cqg.rtd", ,"ContractData",O20, "LongDescription",, "T"),"") -> T Rowe Price Group Inc | Y20: -0.004721263846 | AB20: 0 | AE20: 0.004721263846 | AF20: -0.004721263846
A21: =RTD("cqg.rtd", ,"ContractData",C21, "LongDescription",, "T") -> Citizens Financial Group, Inc. | B21: S.US.CFG | C21: S.US.CFG | D21: =RTD("cqg.rtd", ,"ContractData",C21, "LongDescription",, "T") -> Citizens Financial Group, Inc. | E21: =RTD("cqg.rtd", ,"ContractData",C21, "Open",, "T") -> 47.91 | F21: =RTD("cqg.rtd", ,"ContractData",C21, "High",, "T") -> 48.09 | G21: =RTD("cqg.rtd", ,"ContractData",C21, "Low",, "T") -> 47.16 | H21: =RTD("cqg.rtd", ,"ContractData",C21, "LastTradeToday",, "T") -> 47.36 | I21: =RTD("cqg.rtd", ,"ContractData",C21, "NetLastTradeToday",, "T") -> -0.57 | J21: =IFERROR(RTD("cqg.rtd", ,"ContractData",C21, "PerCentNetLastTrade",, "T")/100,0) -> -0.011892343 | K21: =RTD("cqg.rtd", ,"ContractData", C21, "T_CVol",, "T") -> 3368397 | L21: 21 | M21: =RANK($J21,$J$1:J$73)+COUNTIF($J$1:J21,J21)-1 -> 42 | N21: S.US.CFG | O21: S.US.BRKB | P21: =RTD("cqg.rtd", ,"ContractData",O21, "PerCentNetLastTrade",, "T")/100 -> -0.005436392097 | Q21: https://finance.yahoo.com/quote/BRKB | T21: 0.005436392097 | V21: =IFERROR(RTD("cqg.rtd", ,"ContractData",O21, "LongDescription",, "T"),"") -> Berkshire Hathaway Inc. ClsB | Y21: -0.005436392097 | AB21: 0 | AE21: =IFERROR(T21,"") -> 0.005436392097 | AF21: -0.005436392097
A22: =RTD("cqg.rtd", ,"ContractData",C22, "LongDescription",, "T") -> Cincinnati Fincl Corp | B22: S.US.CINF | C22: S.US.CINF | D22: =RTD("cqg.rtd", ,"ContractData",C22, "LongDescription",, "T") -> Cincinnati Fincl Corp | E22: =RTD("cqg.rtd", ,"ContractData",C22, "Open",, "T") -> 137.41 | F22: =RTD("cqg.rtd", ,"ContractData",C22, "High",, "T") -> 137.73 | G22: =RTD("cqg.rtd", ,"ContractData",C22, "Low",, "T") -> 135.44 | H22: =RTD("cqg.rtd", ,"ContractData",C22, "LastTradeToday",, "T") -> 135.62 | I22: =RTD("cqg.rtd", ,"ContractData",C22, "NetLastTradeToday",, "T") -> -1.34 | J22: =IFERROR(RTD("cqg.rtd", ,"ContractData",C22, "PerCentNetLastTrade",, "T")/100,0) -> -0.009783878505 | K22: =RTD("cqg.rtd", ,"ContractData", C22, "T_CVol",, "T") -> 833382 | L22: 22 | M22: =RANK($J22,$J$1:J$73)+COUNTIF($J$1:J22,J22)-1 -> 34 | N22: S.US.CINF | O22: S.US.PRU | P22: =RTD("cqg.rtd", ,"ContractData",O22, "PerCentNetLastTrade",, "T")/100 -> -0.006470483957 | Q22: https://finance.yahoo.com/quote/PRU | T22: 0.006470483957 | V22: =IFERROR(RTD("cqg.rtd", ,"ContractData",O22, "LongDescription",, "T"),"") -> Prudential Financial Inc | Y22: -0.006470483957 | AB22: 0 | AE22: 0.006470483957 | AF22: -0.006470483957
A23: =RTD("cqg.rtd", ,"ContractData",C23, "LongDescription",, "T") -> Chicago Merc Exch Holding Inc | B23: S.US.CME | C23: S.US.CME | D23: =RTD("cqg.rtd", ,"ContractData",C23, "LongDescription",, "T") -> Chicago Merc Exch Holding Inc | E23: =RTD("cqg.rtd", ,"ContractData",C23, "Open",, "T") -> 244.38 | F23: =RTD("cqg.rtd", ,"ContractData",C23, "High",, "T") -> 245.23 | G23: =RTD("cqg.rtd", ,"ContractData",C23, "Low",, "T") -> 241.16 | H23: =RTD("cqg.rtd", ,"ContractData",C23, "LastTradeToday",, "T") -> 241.81 | I23: =RTD("cqg.rtd", ,"ContractData",C23, "NetLastTradeToday",, "T") -> -3.02 | J23: =IFERROR(RTD("cqg.rtd", ,"ContractData",C23, "PerCentNetLastTrade",, "T")/100,0) -> -0.01233508965 | K23: =RTD("cqg.rtd", ,"ContractData", C23, "T_CVol",, "T") -> 1716968 | L23: 23 | M23: =RANK($J23,$J$1:J$73)+COUNTIF($J$1:J23,J23)-1 -> 45 | N23: S.US.CME | O23: S.US.BLK | P23: =RTD("cqg.rtd", ,"ContractData",O23, "PerCentNetLastTrade",, "T")/100 -> -0.006542074916 | Q23: https://finance.yahoo.com/quote/BLK | T23: 0.006542074916 | V23: =IFERROR(RTD("cqg.rtd", ,"ContractData",O23, "LongDescription",, "T"),"") -> BlackRock, Inc. | Y23: -0.006542074916 | AB23: 0 | AE23: =IFERROR(T23,"") -> 0.006542074916 | AF23: -0.006542074916
A24: =RTD("cqg.rtd", ,"ContractData",C24, "LongDescription",, "T") -> Capital One Financl Corp | B24: S.US.COF | C24: S.US.COF | D24: =RTD("cqg.rtd", ,"ContractData",C24, "LongDescription",, "T") -> Capital One Financl Corp | E24: =RTD("cqg.rtd", ,"ContractData",C24, "Open",, "T") -> 203.42 | F24: =RTD("cqg.rtd", ,"ContractData",C24, "High",, "T") -> 203.6 | G24: =RTD("cqg.rtd", ,"ContractData",C24, "Low",, "T") -> 197.98 | H24: =RTD("cqg.rtd", ,"ContractData",C24, "LastTradeToday",, "T") -> 198.79 | I24: =RTD("cqg.rtd", ,"ContractData",C24, "NetLastTradeToday",, "T") -> -4.42 | J24: =IFERROR(RTD("cqg.rtd", ,"ContractData",C24, "PerCentNetLastTrade",, "T")/100,0) -> -0.02175089809 | K24: =RTD("cqg.rtd", ,"ContractData", C24, "T_CVol",, "T") -> 2595388 | L24: 24 | M24: =RANK($J24,$J$1:J$73)+COUNTIF($J$1:J24,J24)-1 -> 66 | N24: S.US.COF | O24: S.US.CBOE | P24: =RTD("cqg.rtd", ,"ContractData",O24, "PerCentNetLastTrade",, "T")/100 -> -0.00691386087 | Q24: https://finance.yahoo.com/quote/CBOE | T24: 0.00691386087 | V24: =IFERROR(RTD("cqg.rtd", ,"ContractData",O24, "LongDescription",, "T"),"") -> Cboe Global Markets, Inc. | Y24: -0.00691386087 | AB24: 0 | AE24: 0.00691386087 | AF24: -0.00691386087
A25: =RTD("cqg.rtd", ,"ContractData",C25, "LongDescription",, "T") -> Corpay, Inc. | B25: S.US.CPAY | C25: S.US.CPAY | D25: =RTD("cqg.rtd", ,"ContractData",C25, "LongDescription",, "T") -> Corpay, Inc. | E25: =RTD("cqg.rtd", ,"ContractData",C25, "Open",, "T") -> 375 | F25: =RTD("cqg.rtd", ,"ContractData",C25, "High",, "T") -> 379.88 | G25: =RTD("cqg.rtd", ,"ContractData",C25, "Low",, "T") -> 373.44 | H25: =RTD("cqg.rtd", ,"ContractData",C25, "LastTradeToday",, "T") -> 375.15 | I25: =RTD("cqg.rtd", ,"ContractData",C25, "NetLastTradeToday",, "T") -> -0.71 | J25: =IFERROR(RTD("cqg.rtd", ,"ContractData",C25, "PerCentNetLastTrade",, "T")/100,0) -> -0.001889001224 | K25: =RTD("cqg.rtd", ,"ContractData", C25, "T_CVol",, "T") -> 511575 | L25: 25 | M25: =RANK($J25,$J$1:J$73)+COUNTIF($J$1:J25,J25)-1 -> 16 | N25: S.US.CPAY | O25: S.US.USB | P25: =RTD("cqg.rtd", ,"ContractData",O25, "PerCentNetLastTrade",, "T")/100 -> -0.007410544146 | Q25: https://finance.yahoo.com/quote/USB | T25: 0.007410544146 | V25: =IFERROR(RTD("cqg.rtd", ,"ContractData",O25, "LongDescription",, "T"),"") -> U S Bancorp | Y25: -0.007410544146 | AB25: 0 | AD25: =IFERROR(S25,"") ->  | AE25: 0.007410544146 | AF25: -0.007410544146
A26: =RTD("cqg.rtd", ,"ContractData",C26, "LongDescription",, "T") -> Discover Financial Services | B26: S.US.DFS | C26: S.US.DFS | D26: =RTD("cqg.rtd", ,"ContractData",C26, "LongDescription",, "T") -> Discover Financial Services | E26: =RTD("cqg.rtd", ,"ContractData",C26, "Open",, "T") -> 199.94 | F26: =RTD("cqg.rtd", ,"ContractData",C26, "High",, "T") -> 200 | G26: =RTD("cqg.rtd", ,"ContractData",C26, "Low",, "T") -> 194.72 | H26: =RTD("cqg.rtd", ,"ContractData",C26, "LastTradeToday",, "T") -> 195.41 | I26: =RTD("cqg.rtd", ,"ContractData",C26, "NetLastTradeToday",, "T") -> -4.36 | J26: =IFERROR(RTD("cqg.rtd", ,"ContractData",C26, "PerCentNetLastTrade",, "T")/100,0) -> -0.02182509886 | K26: =RTD("cqg.rtd", ,"ContractData", C26, "T_CVol",, "T") -> 974754 | L26: 26 | M26: =RANK($J26,$J$1:J$73)+COUNTIF($J$1:J26,J26)-1 -> 68 | N26: S.US.DFS | O26: S.US.SPGI | P26: =RTD("cqg.rtd", ,"ContractData",O26, "PerCentNetLastTrade",, "T")/100 -> -0.00741596841 | Q26: https://finance.yahoo.com/quote/SPGI | T26: 0.00741596841 | V26: =IFERROR(RTD("cqg.rtd", ,"ContractData",O26, "LongDescription",, "T"),"") -> S&P Global Inc. | Y26: -0.00741596841 | AB26: 0 | AE26: 0.00741596841 | AF26: -0.00741596841
A27: =RTD("cqg.rtd", ,"ContractData",C27, "LongDescription",, "T") -> Everest Group, Ltd. | B27: S.US.EG | C27: S.US.EG | D27: =RTD("cqg.rtd", ,"ContractData",C27, "LongDescription",, "T") -> Everest Group, Ltd. | E27: =RTD("cqg.rtd", ,"ContractData",C27, "Open",, "T") -> 338.11 | F27: =RTD("cqg.rtd", ,"ContractData",C27, "High",, "T") -> 340.79 | G27: =RTD("cqg.rtd", ,"ContractData",C27, "Low",, "T") -> 333.27 | H27: =RTD("cqg.rtd", ,"ContractData",C27, "LastTradeToday",, "T") -> 333.47 | I27: =RTD("cqg.rtd", ,"ContractData",C27, "NetLastTradeToday",, "T") -> -4.56 | J27: =IFERROR(RTD("cqg.rtd", ,"ContractData",C27, "PerCentNetLastTrade",, "T")/100,0) -> -0.01348992693 | K27: =RTD("cqg.rtd", ,"ContractData", C27, "T_CVol",, "T") -> 447475 | L27: 27 | M27: =RANK($J27,$J$1:J$73)+COUNTIF($J$1:J27,J27)-1 -> 49 | N27: S.US.EG | O27: S.US.APO | P27: =RTD("cqg.rtd", ,"ContractData",O27, "PerCentNetLastTrade",, "T")/100 -> -0.007831141022 | Q27: https://finance.yahoo.com/quote/APO | T27: 0.007831141022 | V27: =IFERROR(RTD("cqg.rtd", ,"ContractData",O27, "LongDescription",, "T"),"") -> Apollo Global Management, LLC | Y27: -0.007831141022 | AB27: 0 | AE27: 0.007831141022 | AF27: -0.007831141022
A28: =RTD("cqg.rtd", ,"ContractData",C28, "LongDescription",, "T") -> Erie Indemnity Co | B28: S.US.ERIE | C28: S.US.ERIE | D28: =RTD("cqg.rtd", ,"ContractData",C28, "LongDescription",, "T") -> Erie Indemnity Co | E28: =RTD("cqg.rtd", ,"ContractData",C28, "Open",, "T") -> 414.42 | F28: =RTD("cqg.rtd", ,"ContractData",C28, "High",, "T") -> 414.76 | G28: =RTD("cqg.rtd", ,"ContractData",C28, "Low",, "T") -> 402.7 | H28: =RTD("cqg.rtd", ,"ContractData",C28, "LastTradeToday",, "T") -> 404.43 | I28: =RTD("cqg.rtd", ,"ContractData",C28, "NetLastTradeToday",, "T") -> -7.81 | J28: =IFERROR(RTD("cqg.rtd", ,"ContractData",C28, "PerCentNetLastTrade",, "T")/100,0) -> -0.0189452746 | K28: =RTD("cqg.rtd", ,"ContractData", C28, "T_CVol",, "T") -> 98687 | L28: 28 | M28: =RANK($J28,$J$1:J$73)+COUNTIF($J$1:J28,J28)-1 -> 60 | N28: S.US.ERIE | O28: S.US.BEN | P28: =RTD("cqg.rtd", ,"ContractData",O28, "PerCentNetLastTrade",, "T")/100 -> -0.007831620166 | Q28: https://finance.yahoo.com/quote/BEN | T28: 0.007831620166 | V28: =IFERROR(RTD("cqg.rtd", ,"ContractData",O28, "LongDescription",, "T"),"") -> Franklin Resources Inc | Y28: -0.007831620166 | AB28: 0 | AE28: 0.007831620166 | AF28: -0.007831620166
A29: =RTD("cqg.rtd", ,"ContractData",C29, "LongDescription",, "T") -> Factet Research | B29: S.US.FDS | C29: S.US.FDS | D29: =RTD("cqg.rtd", ,"ContractData",C29, "LongDescription",, "T") -> Factet Research | E29: =RTD("cqg.rtd", ,"ContractData",C29, "Open",, "T") -> 472.47 | F29: =RTD("cqg.rtd", ,"ContractData",C29, "High",, "T") -> 472.47 | G29: =RTD("cqg.rtd", ,"ContractData",C29, "Low",, "T") -> 459.13 | H29: =RTD("cqg.rtd", ,"ContractData",C29, "LastTradeToday",, "T") -> 460.66 | I29: =RTD("cqg.rtd", ,"ContractData",C29, "NetLastTradeToday",, "T") -> -6.13 | J29: =IFERROR(RTD("cqg.rtd", ,"ContractData",C29, "PerCentNetLastTrade",, "T")/100,0) -> -0.01313224362 | K29: =RTD("cqg.rtd", ,"ContractData", C29, "T_CVol",, "T") -> 222053 | L29: 29 | M29: =RANK($J29,$J$1:J$73)+COUNTIF($J$1:J29,J29)-1 -> 47 | N29: S.US.FDS | O29: S.US.GS | P29: =RTD("cqg.rtd", ,"ContractData",O29, "PerCentNetLastTrade",, "T")/100 -> -0.008187223662 | Q29: https://finance.yahoo.com/quote/GS | T29: 0.008187223662 | V29: =IFERROR(RTD("cqg.rtd", ,"ContractData",O29, "LongDescription",, "T"),"") -> Goldman Sachs Group | Y29: -0.008187223662 | AB29: 0 | AE29: 0.008187223662 | AF29: -0.008187223662
A30: =RTD("cqg.rtd", ,"ContractData",C30, "LongDescription",, "T") -> Fiserv, Inc. | B30: S.US.FI | C30: S.US.FI | D30: =RTD("cqg.rtd", ,"ContractData",C30, "LongDescription",, "T") -> Fiserv, Inc. | E30: =RTD("cqg.rtd", ,"ContractData",C30, "Open",, "T") -> 229.68 | F30: =RTD("cqg.rtd", ,"ContractData",C30, "High",, "T") -> 231.49 | G30: =RTD("cqg.rtd", ,"ContractData",C30, "Low",, "T") -> 229.03 | H30: =RTD("cqg.rtd", ,"ContractData",C30, "LastTradeToday",, "T") -> 230.65 | I30: =RTD("cqg.rtd", ,"ContractData",C30, "NetLastTradeToday",, "T") -> 0.59 | J30: =IFERROR(RTD("cqg.rtd", ,"ContractData",C30, "PerCentNetLastTrade",, "T")/100,0) -> 0.002564548379 | K30: =RTD("cqg.rtd", ,"ContractData", C30, "T_CVol",, "T") -> 2907399 | L30: 30 | M30: =RANK($J30,$J$1:J$73)+COUNTIF($J$1:J30,J30)-1 -> 10 | N30: S.US.FI | O30: S.US.FIS | P30: =RTD("cqg.rtd", ,"ContractData",O30, "PerCentNetLastTrade",, "T")/100 -> -0.009110525054 | Q30: https://finance.yahoo.com/quote/FIS | T30: 0.009110525054 | V30: =IFERROR(RTD("cqg.rtd", ,"ContractData",O30, "LongDescription",, "T"),"") -> Fidelity National Info Services | Y30: -0.009110525054 | AB30: 0 | AE30: 0.009110525054 | AF30: -0.009110525054
A31: =RTD("cqg.rtd", ,"ContractData",C31, "LongDescription",, "T") -> Fidelity National Info Services | B31: S.US.FIS | C31: S.US.FIS | D31: =RTD("cqg.rtd", ,"ContractData",C31, "LongDescription",, "T") -> Fidelity National Info Services | E31: =RTD("cqg.rtd", ,"ContractData",C31, "Open",, "T") -> 83.58 | F31: =RTD("cqg.rtd", ,"ContractData",C31, "High",, "T") -> 83.7 | G31: =RTD("cqg.rtd", ,"ContractData",C31, "Low",, "T") -> 82.48 | H31: =RTD("cqg.rtd", ,"ContractData",C31, "LastTradeToday",, "T") -> 82.66 | I31: =RTD("cqg.rtd", ,"ContractData",C31, "NetLastTradeToday",, "T") -> -0.76 | J31: =IFERROR(RTD("cqg.rtd", ,"ContractData",C31, "PerCentNetLastTrade",, "T")/100,0) -> -0.009110525054 | K31: =RTD("cqg.rtd", ,"ContractData", C31, "T_CVol",, "T") -> 3450616 | L31: 31 | M31: =RANK($J31,$J$1:J$73)+COUNTIF($J$1:J31,J31)-1 -> 30 | N31: S.US.FIS | O31: S.US.AFL | P31: =RTD("cqg.rtd", ,"ContractData",O31, "PerCentNetLastTrade",, "T")/100 -> -0.009364742228 | Q31: https://finance.yahoo.com/quote/AFL | T31: 0.009364742228 | V31: =IFERROR(RTD("cqg.rtd", ,"ContractData",O31, "LongDescription",, "T"),"") -> AFLAC Inc | Y31: -0.009364742228 | AB31: 0 | AE31: 0.009364742228 | AF31: -0.009364742228
A32: =RTD("cqg.rtd", ,"ContractData",C32, "LongDescription",, "T") -> Fifth Third Bancorp | B32: S.US.FITB | C32: S.US.FITB | D32: =RTD("cqg.rtd", ,"ContractData",C32, "LongDescription",, "T") -> Fifth Third Bancorp | E32: =RTD("cqg.rtd", ,"ContractData",C32, "Open",, "T") -> 44.29 | F32: =RTD("cqg.rtd", ,"ContractData",C32, "High",, "T") -> 44.29 | G32: =RTD("cqg.rtd", ,"ContractData",C32, "Low",, "T") -> 43.27 | H32: =RTD("cqg.rtd", ,"ContractData",C32, "LastTradeToday",, "T") -> 43.33 | I32: =RTD("cqg.rtd", ,"ContractData",C32, "NetLastTradeToday",, "T") -> -0.71 | J32: =IFERROR(RTD("cqg.rtd", ,"ContractData",C32, "PerCentNetLastTrade",, "T")/100,0) -> -0.01612170754 | K32: =RTD("cqg.rtd", ,"ContractData", C32, "T_CVol",, "T") -> 4061879 | L32: 32 | M32: =RANK($J32,$J$1:J$73)+COUNTIF($J$1:J32,J32)-1 -> 55 | N32: S.US.FITB | O32: S.US.L | P32: =RTD("cqg.rtd", ,"ContractData",O32, "PerCentNetLastTrade",, "T")/100 -> -0.009565518036 | Q32: https://finance.yahoo.com/quote/L | T32: 0.009565518036 | V32: =IFERROR(RTD("cqg.rtd", ,"ContractData",O32, "LongDescription",, "T"),"") -> Loews Corporation | Y32: -0.009565518036 | AB32: 0 | AE32: 0.009565518036 | AF32: -0.009565518036
A33: =RTD("cqg.rtd", ,"ContractData",C33, "LongDescription",, "T") -> Globe Life Inc. | B33: S.US.GL | C33: S.US.GL | D33: =RTD("cqg.rtd", ,"ContractData",C33, "LongDescription",, "T") -> Globe Life Inc. | E33: =RTD("cqg.rtd", ,"ContractData",C33, "Open",, "T") -> 123.11 | F33: =RTD("cqg.rtd", ,"ContractData",C33, "High",, "T") -> 123.64 | G33: =RTD("cqg.rtd", ,"ContractData",C33, "Low",, "T") -> 121.81 | H33: =RTD("cqg.rtd", ,"ContractData",C33, "LastTradeToday",, "T") -> 122.25 | I33: =RTD("cqg.rtd", ,"ContractData",C33, "NetLastTradeToday",, "T") -> -1.22 | J33: =IFERROR(RTD("cqg.rtd", ,"ContractData",C33, "PerCentNetLastTrade",, "T")/100,0) -> -0.009880942739 | K33: =RTD("cqg.rtd", ,"ContractData", C33, "T_CVol",, "T") -> 450373 | L33: 33 | M33: =RANK($J33,$J$1:J$73)+COUNTIF($J$1:J33,J33)-1 -> 35 | N33: S.US.GL | O33: S.US.BX | P33: =RTD("cqg.rtd", ,"ContractData",O33, "PerCentNetLastTrade",, "T")/100 -> -0.009749221824 | Q33: https://finance.yahoo.com/quote/BX | T33: 0.009749221824 | V33: =IFERROR(RTD("cqg.rtd", ,"ContractData",O33, "LongDescription",, "T"),"") -> Blackstone Inc. | Y33: -0.009749221824 | AB33: 0 | AE33: 0.009749221824 | AF33: -0.009749221824
A34: =RTD("cqg.rtd", ,"ContractData",C34, "LongDescription",, "T") -> Global Payments | B34: S.US.GPN | C34: S.US.GPN | D34: =RTD("cqg.rtd", ,"ContractData",C34, "LongDescription",, "T") -> Global Payments | E34: =RTD("cqg.rtd", ,"ContractData",C34, "Open",, "T") -> 110.02 | F34: =RTD("cqg.rtd", ,"ContractData",C34, "High",, "T") -> 110.48 | G34: =RTD("cqg.rtd", ,"ContractData",C34, "Low",, "T") -> 109.27 | H34: =RTD("cqg.rtd", ,"ContractData",C34, "LastTradeToday",, "T") -> 109.62 | I34: =RTD("cqg.rtd", ,"ContractData",C34, "NetLastTradeToday",, "T") -> 0.02 | J34: =IFERROR(RTD("cqg.rtd", ,"ContractData",C34, "PerCentNetLastTrade",, "T")/100,0) -> 0.0001824817518 | K34: =RTD("cqg.rtd", ,"ContractData", C34, "T_CVol",, "T") -> 1426393 | L34: 34 | M34: =RANK($J34,$J$1:J$73)+COUNTIF($J$1:J34,J34)-1 -> 13 | N34: S.US.GPN | O34: S.US.CINF | P34: =RTD("cqg.rtd", ,"ContractData",O34, "PerCentNetLastTrade",, "T")/100 -> -0.009783878505 | Q34: https://finance.yahoo.com/quote/CINF | T34: 0.009783878505 | V34: =IFERROR(RTD("cqg.rtd", ,"ContractData",O34, "LongDescription",, "T"),"") -> Cincinnati Fincl Corp | Y34: -0.009783878505 | AB34: 0 | AE34: 0.009783878505 | AF34: -0.009783878505
A35: =RTD("cqg.rtd", ,"ContractData",C35, "LongDescription",, "T") -> Goldman Sachs Group | B35: S.US.GS | C35: S.US.GS | D35: =RTD("cqg.rtd", ,"ContractData",C35, "LongDescription",, "T") -> Goldman Sachs Group | E35: =RTD("cqg.rtd", ,"ContractData",C35, "Open",, "T") -> 659.02 | F35: =RTD("cqg.rtd", ,"ContractData",C35, "High",, "T") -> 662.49 | G35: =RTD("cqg.rtd", ,"ContractData",C35, "Low",, "T") -> 644.25 | H35: =RTD("cqg.rtd", ,"ContractData",C35, "LastTradeToday",, "T") -> 650.53 | I35: =RTD("cqg.rtd", ,"ContractData",C35, "NetLastTradeToday",, "T") -> -5.37 | J35: =IFERROR(RTD("cqg.rtd", ,"ContractData",C35, "PerCentNetLastTrade",, "T")/100,0) -> -0.008187223662 | K35: =RTD("cqg.rtd", ,"ContractData", C35, "T_CVol",, "T") -> 2351495 | L35: 35 | M35: =RANK($J35,$J$1:J$73)+COUNTIF($J$1:J35,J35)-1 -> 29 | N35: S.US.GS | O35: S.US.GL | P35: =RTD("cqg.rtd", ,"ContractData",O35, "PerCentNetLastTrade",, "T")/100 -> -0.009880942739 | Q35: https://finance.yahoo.com/quote/GL | T35: 0.009880942739 | V35: =IFERROR(RTD("cqg.rtd", ,"ContractData",O35, "LongDescription",, "T"),"") -> Globe Life Inc. | Y35: -0.009880942739 | AB35: 0 | AE35: 0.009880942739 | AF35: -0.009880942739
A36: =RTD("cqg.rtd", ,"ContractData",C36, "LongDescription",, "T") -> Huntington Bancshrs Inc | B36: S.US.HBAN | C36: S.US.HBAN | D36: =RTD("cqg.rtd", ,"ContractData",C36, "LongDescription",, "T") -> Huntington Bancshrs Inc | E36: =RTD("cqg.rtd", ,"ContractData",C36, "Open",, "T") -> 16.95 | F36: =RTD("cqg.rtd", ,"ContractData",C36, "High",, "T") -> 16.98 | G36: =RTD("cqg.rtd", ,"ContractData",C36, "Low",, "T") -> 16.65 | H36: =RTD("cqg.rtd", ,"ContractData",C36, "LastTradeToday",, "T") -> 16.73 | I36: =RTD("cqg.rtd", ,"ContractData",C36, "NetLastTradeToday",, "T") -> -0.19 | J36: =IFERROR(RTD("cqg.rtd", ,"ContractData",C36, "PerCentNetLastTrade",, "T")/100,0) -> -0.01122931442 | K36: =RTD("cqg.rtd", ,"ContractData", C36, "T_CVol",, "T") -> 17997187 | L36: 36 | M36: =RANK($J36,$J$1:J$73)+COUNTIF($J$1:J36,J36)-1 -> 40 | N36: S.US.HBAN | O36: S.US.MET | P36: =RTD("cqg.rtd", ,"ContractData",O36, "PerCentNetLastTrade",, "T")/100 -> -0.01000953289 | Q36: https://finance.yahoo.com/quote/MET | T36: 0.01000953289 | V36: =IFERROR(RTD("cqg.rtd", ,"ContractData",O36, "LongDescription",, "T"),"") -> MetLife Inc | Y36: -0.01000953289 | AB36: 0 | AE36: 0.01000953289 | AF36: -0.01000953289
A37: =RTD("cqg.rtd", ,"ContractData",C37, "LongDescription",, "T") -> The Hartford Fincl Svcs Grp | B37: S.US.HIG | C37: S.US.HIG | D37: =RTD("cqg.rtd", ,"ContractData",C37, "LongDescription",, "T") -> The Hartford Fincl Svcs Grp | E37: =RTD("cqg.rtd", ,"ContractData",C37, "Open",, "T") -> 113.34 | F37: =RTD("cqg.rtd", ,"ContractData",C37, "High",, "T") -> 113.65 | G37: =RTD("cqg.rtd", ,"ContractData",C37, "Low",, "T") -> 111.89 | H37: =RTD("cqg.rtd", ,"ContractData",C37, "LastTradeToday",, "T") -> 111.96 | I37: =RTD("cqg.rtd", ,"ContractData",C37, "NetLastTradeToday",, "T") -> -1.56 | J37: =IFERROR(RTD("cqg.rtd", ,"ContractData",C37, "PerCentNetLastTrade",, "T")/100,0) -> -0.01374207188 | K37: =RTD("cqg.rtd", ,"ContractData", C37, "T_CVol",, "T") -> 1573459 | L37: 37 | M37: =RANK($J37,$J$1:J$73)+COUNTIF($J$1:J37,J37)-1 -> 50 | N37: S.US.HIG | O37: S.US.IVZ | P37: =RTD("cqg.rtd", ,"ContractData",O37, "PerCentNetLastTrade",, "T")/100 -> -0.0105764146 | Q37: https://finance.yahoo.com/quote/IVZ | T37: 0.0105764146 | V37: =IFERROR(RTD("cqg.rtd", ,"ContractData",O37, "LongDescription",, "T"),"") -> Invesco Ltd. | Y37: -0.0105764146 | AB37: 0 | AE37: 0.0105764146 | AF37: -0.0105764146
A38: =RTD("cqg.rtd", ,"ContractData",C38, "LongDescription",, "T") -> Intercontinental, Inc. | B38: S.US.ICE | C38: S.US.ICE | D38: =RTD("cqg.rtd", ,"ContractData",C38, "LongDescription",, "T") -> Intercontinental, Inc. | E38: =RTD("cqg.rtd", ,"ContractData",C38, "Open",, "T") -> 167.31 | F38: =RTD("cqg.rtd", ,"ContractData",C38, "High",, "T") -> 167.75 | G38: =RTD("cqg.rtd", ,"ContractData",C38, "Low",, "T") -> 165.77 | H38: =RTD("cqg.rtd", ,"ContractData",C38, "LastTradeToday",, "T") -> 167.12 | I38: =RTD("cqg.rtd", ,"ContractData",C38, "NetLastTradeToday",, "T") -> 0.29 | J38: =IFERROR(RTD("cqg.rtd", ,"ContractData",C38, "PerCentNetLastTrade",, "T")/100,0) -> 0.001738296469 | K38: =RTD("cqg.rtd", ,"ContractData", C38, "T_CVol",, "T") -> 3650161 | L38: 38 | M38: =RANK($J38,$J$1:J$73)+COUNTIF($J$1:J38,J38)-1 -> 12 | N38: S.US.ICE | O38: S.US.TFC | P38: =RTD("cqg.rtd", ,"ContractData",O38, "PerCentNetLastTrade",, "T")/100 -> -0.01111577181 | Q38: https://finance.yahoo.com/quote/TFC | T38: 0.01111577181 | V38: =IFERROR(RTD("cqg.rtd", ,"ContractData",O38, "LongDescription",, "T"),"") -> Truist Financial Corporation | Y38: -0.01111577181 | AB38: 0 | AE38: 0.01111577181 | AF38: -0.01111577181
A39: =RTD("cqg.rtd", ,"ContractData",C39, "LongDescription",, "T") -> Invesco Ltd. | B39: S.US.IVZ | C39: S.US.IVZ | D39: =RTD("cqg.rtd", ,"ContractData",C39, "LongDescription",, "T") -> Invesco Ltd. | E39: =RTD("cqg.rtd", ,"ContractData",C39, "Open",, "T") -> 19 | F39: =RTD("cqg.rtd", ,"ContractData",C39, "High",, "T") -> 19.1 | G39: =RTD("cqg.rtd", ,"ContractData",C39, "Low",, "T") -> 18.59 | H39: =RTD("cqg.rtd", ,"ContractData",C39, "LastTradeToday",, "T") -> 18.71 | I39: =RTD("cqg.rtd", ,"ContractData",C39, "NetLastTradeToday",, "T") -> -0.2 | J39: =IFERROR(RTD("cqg.rtd", ,"ContractData",C39, "PerCentNetLastTrade",, "T")/100,0) -> -0.0105764146 | K39: =RTD("cqg.rtd", ,"ContractData", C39, "T_CVol",, "T") -> 3917174 | L39: 39 | M39: =RANK($J39,$J$1:J$73)+COUNTIF($J$1:J39,J39)-1 -> 37 | N39: S.US.IVZ | O39: S.US.WRB | P39: =RTD("cqg.rtd", ,"ContractData",O39, "PerCentNetLastTrade",, "T")/100 -> -0.01121768818 | Q39: https://finance.yahoo.com/quote/WRB | T39: 0.01121768818 | V39: =IFERROR(RTD("cqg.rtd", ,"ContractData",O39, "LongDescription",, "T"),"") -> WR Berkley Corp | Y39: -0.01121768818 | AA39: =IF(S39="#N/A",0,1) ->  | AB39: 0 | AE39: 0.01121768818 | AF39: -0.01121768818
A40: =RTD("cqg.rtd", ,"ContractData",C40, "LongDescription",, "T") -> Jack Henry/Associates Inc | B40: S.US.JKHY | C40: S.US.JKHY | D40: =RTD("cqg.rtd", ,"ContractData",C40, "LongDescription",, "T") -> Jack Henry/Associates Inc | E40: =RTD("cqg.rtd", ,"ContractData",C40, "Open",, "T") -> 174 | F40: =RTD("cqg.rtd", ,"ContractData",C40, "High",, "T") -> 174.75 | G40: =RTD("cqg.rtd", ,"ContractData",C40, "Low",, "T") -> 173.08 | H40: =RTD("cqg.rtd", ,"ContractData",C40, "LastTradeToday",, "T") -> 173.66 | I40: =RTD("cqg.rtd", ,"ContractData",C40, "NetLastTradeToday",, "T") -> -0.15 | J40: =IFERROR(RTD("cqg.rtd", ,"ContractData",C40, "PerCentNetLastTrade",, "T")/100,0) -> -0.0008630113342 | K40: =RTD("cqg.rtd", ,"ContractData", C40, "T_CVol",, "T") -> 454923 | L40: 40 | M40: =RANK($J40,$J$1:J$73)+COUNTIF($J$1:J40,J40)-1 -> 14 | N40: S.US.JKHY | O40: S.US.HBAN | P40: =RTD("cqg.rtd", ,"ContractData",O40, "PerCentNetLastTrade",, "T")/100 -> -0.01122931442 | Q40: https://finance.yahoo.com/quote/HBAN | T40: 0.01122931442 | V40: =IFERROR(RTD("cqg.rtd", ,"ContractData",O40, "LongDescription",, "T"),"") -> Huntington Bancshrs Inc | Y40: -0.01122931442 | AB40: 0 | AE40: 0.01122931442 | AF40: -0.01122931442
A41: =RTD("cqg.rtd", ,"ContractData",C41, "LongDescription",, "T") -> JPMorgan Chase & Co. | B41: S.US.JPM | C41: S.US.JPM | D41: =RTD("cqg.rtd", ,"ContractData",C41, "LongDescription",, "T") -> JPMorgan Chase & Co. | E41: =RTD("cqg.rtd", ,"ContractData",C41, "Open",, "T") -> 276.15 | F41: =RTD("cqg.rtd", ,"ContractData",C41, "High",, "T") -> 276.18 | G41: =RTD("cqg.rtd", ,"ContractData",C41, "Low",, "T") -> 269.59 | H41: =RTD("cqg.rtd", ,"ContractData",C41, "LastTradeToday",, "T") -> 271.04 | I41: =RTD("cqg.rtd", ,"ContractData",C41, "NetLastTradeToday",, "T") -> -4.76 | J41: =IFERROR(RTD("cqg.rtd", ,"ContractData",C41, "PerCentNetLastTrade",, "T")/100,0) -> -0.01725888325 | K41: =RTD("cqg.rtd", ,"ContractData", C41, "T_CVol",, "T") -> 8623100 | L41: 41 | M41: =RANK($J41,$J$1:J$73)+COUNTIF($J$1:J41,J41)-1 -> 57 | N41: S.US.JPM | O41: S.US.TRV | P41: =RTD("cqg.rtd", ,"ContractData",O41, "PerCentNetLastTrade",, "T")/100 -> -0.01129736123 | Q41: https://finance.yahoo.com/quote/TRV | T41: 0.01129736123 | V41: =IFERROR(RTD("cqg.rtd", ,"ContractData",O41, "LongDescription",, "T"),"") -> Travelers Companies, Inc | Y41: -0.01129736123 | AB41: 0 | AE41: 0.01129736123 | AF41: -0.01129736123
A42: =RTD("cqg.rtd", ,"ContractData",C42, "LongDescription",, "T") -> KeyCorp | B42: S.US.KEY | C42: S.US.KEY | D42: =RTD("cqg.rtd", ,"ContractData",C42, "LongDescription",, "T") -> KeyCorp | E42: =RTD("cqg.rtd", ,"ContractData",C42, "Open",, "T") -> 17.92 | F42: =RTD("cqg.rtd", ,"ContractData",C42, "High",, "T") -> 17.92 | G42: =RTD("cqg.rtd", ,"ContractData",C42, "Low",, "T") -> 17.5 | H42: =RTD("cqg.rtd", ,"ContractData",C42, "LastTradeToday",, "T") -> 17.51 | I42: =RTD("cqg.rtd", ,"ContractData",C42, "NetLastTradeToday",, "T") -> -0.33 | J42: =IFERROR(RTD("cqg.rtd", ,"ContractData",C42, "PerCentNetLastTrade",, "T")/100,0) -> -0.01849775785 | K42: =RTD("cqg.rtd", ,"ContractData", C42, "T_CVol",, "T") -> 8148132 | L42: 42 | M42: =RANK($J42,$J$1:J$73)+COUNTIF($J$1:J42,J42)-1 -> 59 | N42: S.US.KEY | O42: S.US.CFG | P42: =RTD("cqg.rtd", ,"ContractData",O42, "PerCentNetLastTrade",, "T")/100 -> -0.011892343 | Q42: https://finance.yahoo.com/quote/CFG | T42: 0.011892343 | V42: =IFERROR(RTD("cqg.rtd", ,"ContractData",O42, "LongDescription",, "T"),"") -> Citizens Financial Group, Inc. | Y42: -0.011892343 | AB42: 0 | AE42: 0.011892343 | AF42: -0.011892343
A43: =RTD("cqg.rtd", ,"ContractData",C43, "LongDescription",, "T") -> KKR & Co. Inc. | B43: S.US.KKR | C43: S.US.KKR | D43: =RTD("cqg.rtd", ,"ContractData",C43, "LongDescription",, "T") -> KKR & Co. Inc. | E43: =RTD("cqg.rtd", ,"ContractData",C43, "Open",, "T") -> 150.1 | F43: =RTD("cqg.rtd", ,"ContractData",C43, "High",, "T") -> 151.39 | G43: =RTD("cqg.rtd", ,"ContractData",C43, "Low",, "T") -> 146.56 | H43: =RTD("cqg.rtd", ,"ContractData",C43, "LastTradeToday",, "T") -> 147.93 | I43: =RTD("cqg.rtd", ,"ContractData",C43, "NetLastTradeToday",, "T") -> -0.68 | J43: =IFERROR(RTD("cqg.rtd", ,"ContractData",C43, "PerCentNetLastTrade",, "T")/100,0) -> -0.004575735146 | K43: =RTD("cqg.rtd", ,"ContractData", C43, "T_CVol",, "T") -> 4150670 | L43: 43 | M43: =RANK($J43,$J$1:J$73)+COUNTIF($J$1:J43,J43)-1 -> 19 | N43: S.US.KKR | O43: S.US.C | P43: =RTD("cqg.rtd", ,"ContractData",O43, "PerCentNetLastTrade",, "T")/100 -> -0.01211453744 | Q43: https://finance.yahoo.com/quote/C | T43: 0.01211453744 | V43: =IFERROR(RTD("cqg.rtd", ,"ContractData",O43, "LongDescription",, "T"),"") -> Citigroup Inc | Y43: -0.01211453744 | AB43: 0 | AE43: 0.01211453744 | AF43: -0.01211453744
A44: =RTD("cqg.rtd", ,"ContractData",C44, "LongDescription",, "T") -> Loews Corporation | B44: S.US.L | C44: S.US.L | D44: =RTD("cqg.rtd", ,"ContractData",C44, "LongDescription",, "T") -> Loews Corporation | E44: =RTD("cqg.rtd", ,"ContractData",C44, "Open",, "T") -> 85.89 | F44: =RTD("cqg.rtd", ,"ContractData",C44, "High",, "T") -> 88.29 | G44: =RTD("cqg.rtd", ,"ContractData",C44, "Low",, "T") -> 85.16 | H44: =RTD("cqg.rtd", ,"ContractData",C44, "LastTradeToday",, "T") -> 85.94 | I44: =RTD("cqg.rtd", ,"ContractData",C44, "NetLastTradeToday",, "T") -> -0.83 | J44: =IFERROR(RTD("cqg.rtd", ,"ContractData",C44, "PerCentNetLastTrade",, "T")/100,0) -> -0.009565518036 | K44: =RTD("cqg.rtd", ,"ContractData", C44, "T_CVol",, "T") -> 1111551 | L44: 44 | M44: =RANK($J44,$J$1:J$73)+COUNTIF($J$1:J44,J44)-1 -> 32 | N44: S.US.L | O44: S.US.AIZ | P44: =RTD("cqg.rtd", ,"ContractData",O44, "PerCentNetLastTrade",, "T")/100 -> -0.01222346161 | Q44: https://finance.yahoo.com/quote/AIZ | T44: 0.01222346161 | V44: =IFERROR(RTD("cqg.rtd", ,"ContractData",O44, "LongDescription",, "T"),"") -> Assurant Inc | Y44: -0.01222346161 | AB44: 0 | AE44: 0.01222346161 | AF44: -0.01222346161
A45: =RTD("cqg.rtd", ,"ContractData",C45, "LongDescription",, "T") -> Mastercard Inc. | B45: S.US.MA | C45: S.US.MA | D45: =RTD("cqg.rtd", ,"ContractData",C45, "LongDescription",, "T") -> Mastercard Inc. | E45: =RTD("cqg.rtd", ,"ContractData",C45, "Open",, "T") -> 565.25 | F45: =RTD("cqg.rtd", ,"ContractData",C45, "High",, "T") -> 567.27 | G45: =RTD("cqg.rtd", ,"ContractData",C45, "Low",, "T") -> 561 | H45: =RTD("cqg.rtd", ,"ContractData",C45, "LastTradeToday",, "T") -> 565.49 | I45: =RTD("cqg.rtd", ,"ContractData",C45, "NetLastTradeToday",, "T") -> 2.74 | J45: =IFERROR(RTD("cqg.rtd", ,"ContractData",C45, "PerCentNetLastTrade",, "T")/100,0) -> 0.004868947135 | K45: =RTD("cqg.rtd", ,"ContractData", C45, "T_CVol",, "T") -> 2357342 | L45: 45 | M45: =RANK($J45,$J$1:J$73)+COUNTIF($J$1:J45,J45)-1 -> 7 | N45: S.US.MA | O45: S.US.CME | P45: =RTD("cqg.rtd", ,"ContractData",O45, "PerCentNetLastTrade",, "T")/100 -> -0.01233508965 | Q45: https://finance.yahoo.com/quote/CME | T45: 0.01233508965 | V45: =IFERROR(RTD("cqg.rtd", ,"ContractData",O45, "LongDescription",, "T"),"") -> Chicago Merc Exch Holding Inc | Y45: -0.01233508965 | AB45: 0 | AE45: 0.01233508965 | AF45: -0.01233508965
A46: =RTD("cqg.rtd", ,"ContractData",C46, "LongDescription",, "T") -> Moodys Corp | B46: S.US.MCO | C46: S.US.MCO | D46: =RTD("cqg.rtd", ,"ContractData",C46, "LongDescription",, "T") -> Moodys Corp | E46: =RTD("cqg.rtd", ,"ContractData",C46, "Open",, "T") -> 505.42 | F46: =RTD("cqg.rtd", ,"ContractData",C46, "High",, "T") -> 505.5 | G46: =RTD("cqg.rtd", ,"ContractData",C46, "Low",, "T") -> 498 | H46: =RTD("cqg.rtd", ,"ContractData",C46, "LastTradeToday",, "T") -> 504.23 | I46: =RTD("cqg.rtd", ,"ContractData",C46, "NetLastTradeToday",, "T") -> 0.93 | J46: =IFERROR(RTD("cqg.rtd", ,"ContractData",C46, "PerCentNetLastTrade",, "T")/100,0) -> 0.00184780449 | K46: =RTD("cqg.rtd", ,"ContractData", C46, "T_CVol",, "T") -> 847872 | L46: 46 | M46: =RANK($J46,$J$1:J$73)+COUNTIF($J$1:J46,J46)-1 -> 11 | N46: S.US.MCO | O46: S.US.BK | P46: =RTD("cqg.rtd", ,"ContractData",O46, "PerCentNetLastTrade",, "T")/100 -> -0.01300058038 | Q46: https://finance.yahoo.com/quote/BK | T46: 0.01300058038 | V46: =IFERROR(RTD("cqg.rtd", ,"ContractData",O46, "LongDescription",, "T"),"") -> Bank of New York Co Inc | Y46: -0.01300058038 | AB46: 0 | AE46: 0.01300058038 | AF46: -0.01300058038
A47: =RTD("cqg.rtd", ,"ContractData",C47, "LongDescription",, "T") -> MetLife Inc | B47: S.US.MET | C47: S.US.MET | D47: =RTD("cqg.rtd", ,"ContractData",C47, "LongDescription",, "T") -> MetLife Inc | E47: =RTD("cqg.rtd", ,"ContractData",C47, "Open",, "T") -> 83.76 | F47: =RTD("cqg.rtd", ,"ContractData",C47, "High",, "T") -> 84.15 | G47: =RTD("cqg.rtd", ,"ContractData",C47, "Low",, "T") -> 82.4 | H47: =RTD("cqg.rtd", ,"ContractData",C47, "LastTradeToday",, "T") -> 83.08 | I47: =RTD("cqg.rtd", ,"ContractData",C47, "NetLastTradeToday",, "T") -> -0.84 | J47: =IFERROR(RTD("cqg.rtd", ,"ContractData",C47, "PerCentNetLastTrade",, "T")/100,0) -> -0.01000953289 | K47: =RTD("cqg.rtd", ,"ContractData", C47, "T_CVol",, "T") -> 3656281 | L47: 47 | M47: =RANK($J47,$J$1:J$73)+COUNTIF($J$1:J47,J47)-1 -> 36 | N47: S.US.MET | O47: S.US.FDS | P47: =RTD("cqg.rtd", ,"ContractData",O47, "PerCentNetLastTrade",, "T")/100 -> -0.01313224362 | Q47: https://finance.yahoo.com/quote/FDS | T47: 0.01313224362 | V47: =IFERROR(RTD("cqg.rtd", ,"ContractData",O47, "LongDescription",, "T"),"") -> Factet Research | Y47: -0.01313224362 | AB47: 0 | AE47: 0.01313224362 | AF47: -0.01313224362
A48: =RTD("cqg.rtd", ,"ContractData",C48, "LongDescription",, "T") -> MarketAxcess Inc | B48: S.US.MKTX | C48: S.US.MKTX | D48: =RTD("cqg.rtd", ,"ContractData",C48, "LongDescription",, "T") -> MarketAxcess Inc | E48: =RTD("cqg.rtd", ,"ContractData",C48, "Open",, "T") -> 201.13 | F48: =RTD("cqg.rtd", ,"ContractData",C48, "High",, "T") -> 202.54 | G48: =RTD("cqg.rtd", ,"ContractData",C48, "Low",, "T") -> 196.04 | H48: =RTD("cqg.rtd", ,"ContractData",C48, "LastTradeToday",, "T") -> 196.2 | I48: =RTD("cqg.rtd", ,"ContractData",C48, "NetLastTradeToday",, "T") -> -5.17 | J48: =IFERROR(RTD("cqg.rtd", ,"ContractData",C48, "PerCentNetLastTrade",, "T")/100,0) -> -0.02567413219 | K48: =RTD("cqg.rtd", ,"ContractData", C48, "T_CVol",, "T") -> 591613 | L48: 48 | M48: =RANK($J48,$J$1:J$73)+COUNTIF($J$1:J48,J48)-1 -> 71 | N48: S.US.MKTX | O48: S.US.CB | P48: =RTD("cqg.rtd", ,"ContractData",O48, "PerCentNetLastTrade",, "T")/100 -> -0.01325140657 | Q48: https://finance.yahoo.com/quote/CB | T48: 0.01325140657 | V48: =IFERROR(RTD("cqg.rtd", ,"ContractData",O48, "LongDescription",, "T"),"") -> Chubb Limited | Y48: -0.01325140657 | AB48: 0 | AE48: 0.01325140657 | AF48: -0.01325140657
A49: =RTD("cqg.rtd", ,"ContractData",C49, "LongDescription",, "T") -> Marsh & McLennan Cos Inc | B49: S.US.MMC | C49: S.US.MMC | D49: =RTD("cqg.rtd", ,"ContractData",C49, "LongDescription",, "T") -> Marsh & McLennan Cos Inc | E49: =RTD("cqg.rtd", ,"ContractData",C49, "Open",, "T") -> 227.37 | F49: =RTD("cqg.rtd", ,"ContractData",C49, "High",, "T") -> 228.47 | G49: =RTD("cqg.rtd", ,"ContractData",C49, "Low",, "T") -> 225.45 | H49: =RTD("cqg.rtd", ,"ContractData",C49, "LastTradeToday",, "T") -> 228.05 | I49: =RTD("cqg.rtd", ,"ContractData",C49, "NetLastTradeToday",, "T") -> 0.65 | J49: =IFERROR(RTD("cqg.rtd", ,"ContractData",C49, "PerCentNetLastTrade",, "T")/100,0) -> 0.002858399296 | K49: =RTD("cqg.rtd", ,"ContractData", C49, "T_CVol",, "T") -> 1698714 | L49: 49 | M49: =RANK($J49,$J$1:J$73)+COUNTIF($J$1:J49,J49)-1 -> 9 | N49: S.US.MMC | O49: S.US.EG | P49: =RTD("cqg.rtd", ,"ContractData",O49, "PerCentNetLastTrade",, "T")/100 -> -0.01348992693 | Q49: https://finance.yahoo.com/quote/EG | T49: 0.01348992693 | V49: =IFERROR(RTD("cqg.rtd", ,"ContractData",O49, "LongDescription",, "T"),"") -> Everest Group, Ltd. | Y49: -0.01348992693 | AB49: 0 | AE49: 0.01348992693 | AF49: -0.01348992693
A50: =RTD("cqg.rtd", ,"ContractData",C50, "LongDescription",, "T") -> Morgan Stanley | B50: S.US.MS | C50: S.US.MS | D50: =RTD("cqg.rtd", ,"ContractData",C50, "LongDescription",, "T") -> Morgan Stanley | E50: =RTD("cqg.rtd", ,"ContractData",C50, "Open",, "T") -> 140.25 | F50: =RTD("cqg.rtd", ,"ContractData",C50, "High",, "T") -> 140.31 | G50: =RTD("cqg.rtd", ,"ContractData",C50, "Low",, "T") -> 135.61 | H50: =RTD("cqg.rtd", ,"ContractData",C50, "LastTradeToday",, "T") -> 137.31 | I50: =RTD("cqg.rtd", ,"ContractData",C50, "NetLastTradeToday",, "T") -> -2.67 | J50: =IFERROR(RTD("cqg.rtd", ,"ContractData",C50, "PerCentNetLastTrade",, "T")/100,0) -> -0.01907415345 | K50: =RTD("cqg.rtd", ,"ContractData", C50, "T_CVol",, "T") -> 5515919 | L50: 50 | M50: =RANK($J50,$J$1:J$73)+COUNTIF($J$1:J50,J50)-1 -> 61 | N50: S.US.MS | O50: S.US.HIG | P50: =RTD("cqg.rtd", ,"ContractData",O50, "PerCentNetLastTrade",, "T")/100 -> -0.01374207188 | Q50: https://finance.yahoo.com/quote/HIG | T50: 0.01374207188 | V50: =IFERROR(RTD("cqg.rtd", ,"ContractData",O50, "LongDescription",, "T"),"") -> The Hartford Fincl Svcs Grp | Y50: -0.01374207188 | AB50: 0 | AE50: 0.01374207188 | AF50: -0.01374207188
A51: =RTD("cqg.rtd", ,"ContractData",C51, "LongDescription",, "T") -> MSCI, Inc. | B51: S.US.MSCI | C51: S.US.MSCI | D51: =RTD("cqg.rtd", ,"ContractData",C51, "LongDescription",, "T") -> MSCI, Inc. | E51: =RTD("cqg.rtd", ,"ContractData",C51, "Open",, "T") -> 582.05 | F51: =RTD("cqg.rtd", ,"ContractData",C51, "High",, "T") -> 583.83 | G51: =RTD("cqg.rtd", ,"ContractData",C51, "Low",, "T") -> 575.59 | H51: =RTD("cqg.rtd", ,"ContractData",C51, "LastTradeToday",, "T") -> 583.48 | I51: =RTD("cqg.rtd", ,"ContractData",C51, "NetLastTradeToday",, "T") -> 4.09 | J51: =IFERROR(RTD("cqg.rtd", ,"ContractData",C51, "PerCentNetLastTrade",, "T")/100,0) -> 0.007059148415 | K51: =RTD("cqg.rtd", ,"ContractData", C51, "T_CVol",, "T") -> 547416 | L51: 51 | M51: =RANK($J51,$J$1:J$73)+COUNTIF($J$1:J51,J51)-1 -> 4 | N51: S.US.MSCI | O51: S.US.STT | P51: =RTD("cqg.rtd", ,"ContractData",O51, "PerCentNetLastTrade",, "T")/100 -> -0.01397827836 | Q51: https://finance.yahoo.com/quote/STT | T51: 0.01397827836 | V51: =IFERROR(RTD("cqg.rtd", ,"ContractData",O51, "LongDescription",, "T"),"") -> State Street Corp | Y51: -0.01397827836 | AB51: 0 | AE51: 0.01397827836 | AF51: -0.01397827836
A52: =RTD("cqg.rtd", ,"ContractData",C52, "LongDescription",, "T") -> M&T Bank Corp | B52: S.US.MTB | C52: S.US.MTB | D52: =RTD("cqg.rtd", ,"ContractData",C52, "LongDescription",, "T") -> M&T Bank Corp | E52: =RTD("cqg.rtd", ,"ContractData",C52, "Open",, "T") -> 200.23 | F52: =RTD("cqg.rtd", ,"ContractData",C52, "High",, "T") -> 200.39 | G52: =RTD("cqg.rtd", ,"ContractData",C52, "Low",, "T") -> 197.26 | H52: =RTD("cqg.rtd", ,"ContractData",C52, "LastTradeToday",, "T") -> 197.53 | I52: =RTD("cqg.rtd", ,"ContractData",C52, "NetLastTradeToday",, "T") -> -2.85 | J52: =IFERROR(RTD("cqg.rtd", ,"ContractData",C52, "PerCentNetLastTrade",, "T")/100,0) -> -0.01422297634 | K52: =RTD("cqg.rtd", ,"ContractData", C52, "T_CVol",, "T") -> 608113 | L52: 52 | M52: =RANK($J52,$J$1:J$73)+COUNTIF($J$1:J52,J52)-1 -> 52 | N52: S.US.MTB | O52: S.US.MTB | P52: =RTD("cqg.rtd", ,"ContractData",O52, "PerCentNetLastTrade",, "T")/100 -> -0.01422297634 | Q52: https://finance.yahoo.com/quote/MTB | T52: 0.01422297634 | V52: =IFERROR(RTD("cqg.rtd", ,"ContractData",O52, "LongDescription",, "T"),"") -> M&T Bank Corp | Y52: -0.01422297634 | AB52: 0 | AE52: 0.01422297634 | AF52: -0.01422297634
A53: =RTD("cqg.rtd", ,"ContractData",C53, "LongDescription",, "T") -> Nasdaq, Inc. | B53: S.US.NDAQ | C53: S.US.NDAQ | D53: =RTD("cqg.rtd", ,"ContractData",C53, "LongDescription",, "T") -> Nasdaq, Inc. | E53: =RTD("cqg.rtd", ,"ContractData",C53, "Open",, "T") -> 83.01 | F53: =RTD("cqg.rtd", ,"ContractData",C53, "High",, "T") -> 83.93 | G53: =RTD("cqg.rtd", ,"ContractData",C53, "Low",, "T") -> 81.07 | H53: =RTD("cqg.rtd", ,"ContractData",C53, "LastTradeToday",, "T") -> 81.21 | I53: =RTD("cqg.rtd", ,"ContractData",C53, "NetLastTradeToday",, "T") -> -1.61 | J53: =IFERROR(RTD("cqg.rtd", ,"ContractData",C53, "PerCentNetLastTrade",, "T")/100,0) -> -0.01943974885 | K53: =RTD("cqg.rtd", ,"ContractData", C53, "T_CVol",, "T") -> 2883902 | L53: 53 | M53: =RANK($J53,$J$1:J$73)+COUNTIF($J$1:J53,J53)-1 -> 63 | N53: S.US.NDAQ | O53: S.US.RF | P53: =RTD("cqg.rtd", ,"ContractData",O53, "PerCentNetLastTrade",, "T")/100 -> -0.01513292434 | Q53: https://finance.yahoo.com/quote/RF | T53: 0.01513292434 | V53: =IFERROR(RTD("cqg.rtd", ,"ContractData",O53, "LongDescription",, "T"),"") -> Regions Financial Corp | Y53: -0.01513292434 | AB53: 0 | AE53: 0.01513292434 | AF53: -0.01513292434
A54: =RTD("cqg.rtd", ,"ContractData",C54, "LongDescription",, "T") -> Northern Trust Corp | B54: S.US.NTRS | C54: S.US.NTRS | D54: =RTD("cqg.rtd", ,"ContractData",C54, "LongDescription",, "T") -> Northern Trust Corp | E54: =RTD("cqg.rtd", ,"ContractData",C54, "Open",, "T") -> 113.52 | F54: =RTD("cqg.rtd", ,"ContractData",C54, "High",, "T") -> 113.57 | G54: =RTD("cqg.rtd", ,"ContractData",C54, "Low",, "T") -> 110.87 | H54: =RTD("cqg.rtd", ,"ContractData",C54, "LastTradeToday",, "T") -> 111 | I54: =RTD("cqg.rtd", ,"ContractData",C54, "NetLastTradeToday",, "T") -> -2.51 | J54: =IFERROR(RTD("cqg.rtd", ,"ContractData",C54, "PerCentNetLastTrade",, "T")/100,0) -> -0.0221125892 | K54: =RTD("cqg.rtd", ,"ContractData", C54, "T_CVol",, "T") -> 947198 | L54: 54 | M54: =RANK($J54,$J$1:J$73)+COUNTIF($J$1:J54,J54)-1 -> 69 | N54: S.US.NTRS | O54: S.US.BAC | P54: =RTD("cqg.rtd", ,"ContractData",O54, "PerCentNetLastTrade",, "T")/100 -> -0.01540084388 | Q54: https://finance.yahoo.com/quote/BAC | T54: 0.01540084388 | V54: =IFERROR(RTD("cqg.rtd", ,"ContractData",O54, "LongDescription",, "T"),"") -> Bank of America Corp | Y54: -0.01540084388 | AB54: 0 | AE54: 0.01540084388 | AF54: -0.01540084388
A55: =RTD("cqg.rtd", ,"ContractData",C55, "LongDescription",, "T") -> Principal Financial Group | B55: S.US.PFG | C55: S.US.PFG | D55: =RTD("cqg.rtd", ,"ContractData",C55, "LongDescription",, "T") -> Principal Financial Group | E55: =RTD("cqg.rtd", ,"ContractData",C55, "Open",, "T") -> 82.78 | F55: =RTD("cqg.rtd", ,"ContractData",C55, "High",, "T") -> 85.5 | G55: =RTD("cqg.rtd", ,"ContractData",C55, "Low",, "T") -> 82.07 | H55: =RTD("cqg.rtd", ,"ContractData",C55, "LastTradeToday",, "T") -> 84.38 | I55: =RTD("cqg.rtd", ,"ContractData",C55, "NetLastTradeToday",, "T") -> 2.05 | J55: =IFERROR(RTD("cqg.rtd", ,"ContractData",C55, "PerCentNetLastTrade",, "T")/100,0) -> 0.02489979351 | K55: =RTD("cqg.rtd", ,"ContractData", C55, "T_CVol",, "T") -> 2610083 | L55: 55 | M55: =RANK($J55,$J$1:J$73)+COUNTIF($J$1:J55,J55)-1 -> 1 | N55: S.US.PFG | O55: S.US.FITB | P55: =RTD("cqg.rtd", ,"ContractData",O55, "PerCentNetLastTrade",, "T")/100 -> -0.01612170754 | Q55: https://finance.yahoo.com/quote/FITB | T55: 0.01612170754 | V55: =IFERROR(RTD("cqg.rtd", ,"ContractData",O55, "LongDescription",, "T"),"") -> Fifth Third Bancorp | Y55: -0.01612170754 | AB55: 0 | AE55: 0.01612170754 | AF55: -0.01612170754
A56: =RTD("cqg.rtd", ,"ContractData",C56, "LongDescription",, "T") -> Progressive Corp | B56: S.US.PGR | C56: S.US.PGR | D56: =RTD("cqg.rtd", ,"ContractData",C56, "LongDescription",, "T") -> Progressive Corp | E56: =RTD("cqg.rtd", ,"ContractData",C56, "Open",, "T") -> 252 | F56: =RTD("cqg.rtd", ,"ContractData",C56, "High",, "T") -> 252.47 | G56: =RTD("cqg.rtd", ,"ContractData",C56, "Low",, "T") -> 248.51 | H56: =RTD("cqg.rtd", ,"ContractData",C56, "LastTradeToday",, "T") -> 249.69 | I56: =RTD("cqg.rtd", ,"ContractData",C56, "NetLastTradeToday",, "T") -> -0.91 | J56: =IFERROR(RTD("cqg.rtd", ,"ContractData",C56, "PerCentNetLastTrade",, "T")/100,0) -> -0.003631284916 | K56: =RTD("cqg.rtd", ,"ContractData", C56, "T_CVol",, "T") -> 1881292 | L56: 56 | M56: =RANK($J56,$J$1:J$73)+COUNTIF($J$1:J56,J56)-1 -> 18 | N56: S.US.PGR | O56: S.US.PNC | P56: =RTD("cqg.rtd", ,"ContractData",O56, "PerCentNetLastTrade",, "T")/100 -> -0.01713830211 | Q56: https://finance.yahoo.com/quote/PNC | T56: 0.01713830211 | V56: =IFERROR(RTD("cqg.rtd", ,"ContractData",O56, "LongDescription",, "T"),"") -> PNC Fincl Svcs Grp Inc | Y56: -0.01713830211 | AB56: 0 | AE56: 0.01713830211 | AF56: -0.01713830211
A57: =RTD("cqg.rtd", ,"ContractData",C57, "LongDescription",, "T") -> PNC Fincl Svcs Grp Inc | B57: S.US.PNC | C57: S.US.PNC | D57: =RTD("cqg.rtd", ,"ContractData",C57, "LongDescription",, "T") -> PNC Fincl Svcs Grp Inc | E57: =RTD("cqg.rtd", ,"ContractData",C57, "Open",, "T") -> 200.72 | F57: =RTD("cqg.rtd", ,"ContractData",C57, "High",, "T") -> 200.95 | G57: =RTD("cqg.rtd", ,"ContractData",C57, "Low",, "T") -> 196.56 | H57: =RTD("cqg.rtd", ,"ContractData",C57, "LastTradeToday",, "T") -> 197.28 | I57: =RTD("cqg.rtd", ,"ContractData",C57, "NetLastTradeToday",, "T") -> -3.44 | J57: =IFERROR(RTD("cqg.rtd", ,"ContractData",C57, "PerCentNetLastTrade",, "T")/100,0) -> -0.01713830211 | K57: =RTD("cqg.rtd", ,"ContractData", C57, "T_CVol",, "T") -> 1452975 | L57: 57 | M57: =RANK($J57,$J$1:J$73)+COUNTIF($J$1:J57,J57)-1 -> 56 | N57: S.US.PNC | O57: S.US.JPM | P57: =RTD("cqg.rtd", ,"ContractData",O57, "PerCentNetLastTrade",, "T")/100 -> -0.01725888325 | Q57: https://finance.yahoo.com/quote/JPM | T57: 0.01725888325 | V57: =IFERROR(RTD("cqg.rtd", ,"ContractData",O57, "LongDescription",, "T"),"") -> JPMorgan Chase & Co. | Y57: -0.01725888325 | AB57: 0 | AE57: 0.01725888325 | AF57: -0.01725888325
A58: =RTD("cqg.rtd", ,"ContractData",C58, "LongDescription",, "T") -> Prudential Financial Inc | B58: S.US.PRU | C58: S.US.PRU | D58: =RTD("cqg.rtd", ,"ContractData",C58, "LongDescription",, "T") -> Prudential Financial Inc | E58: =RTD("cqg.rtd", ,"ContractData",C58, "Open",, "T") -> 112.86 | F58: =RTD("cqg.rtd", ,"ContractData",C58, "High",, "T") -> 113.35 | G58: =RTD("cqg.rtd", ,"ContractData",C58, "Low",, "T") -> 111.41 | H58: =RTD("cqg.rtd", ,"ContractData",C58, "LastTradeToday",, "T") -> 112.09 | I58: =RTD("cqg.rtd", ,"ContractData",C58, "NetLastTradeToday",, "T") -> -0.73 | J58: =IFERROR(RTD("cqg.rtd", ,"ContractData",C58, "PerCentNetLastTrade",, "T")/100,0) -> -0.006470483957 | K58: =RTD("cqg.rtd", ,"ContractData", C58, "T_CVol",, "T") -> 1496615 | L58: 58 | M58: =RANK($J58,$J$1:J$73)+COUNTIF($J$1:J58,J58)-1 -> 22 | N58: S.US.PRU | O58: S.US.AMP | P58: =RTD("cqg.rtd", ,"ContractData",O58, "PerCentNetLastTrade",, "T")/100 -> -0.01748978834 | Q58: https://finance.yahoo.com/quote/AMP | T58: 0.01748978834 | V58: =IFERROR(RTD("cqg.rtd", ,"ContractData",O58, "LongDescription",, "T"),"") -> Ameriprise Financial Inc | Y58: -0.01748978834 | AB58: 0 | AE58: 0.01748978834 | AF58: -0.01748978834
A59: =RTD("cqg.rtd", ,"ContractData",C59, "LongDescription",, "T") -> PayPal Holdings, Inc. | B59: S.US.PYPL | C59: S.US.PYPL | D59: =RTD("cqg.rtd", ,"ContractData",C59, "LongDescription",, "T") -> PayPal Holdings, Inc. | E59: =RTD("cqg.rtd", ,"ContractData",C59, "Open",, "T") -> 78.16 | F59: =RTD("cqg.rtd", ,"ContractData",C59, "High",, "T") -> 78.92 | G59: =RTD("cqg.rtd", ,"ContractData",C59, "Low",, "T") -> 77.61 | H59: =RTD("cqg.rtd", ,"ContractData",C59, "LastTradeToday",, "T") -> 78.24 | I59: =RTD("cqg.rtd", ,"ContractData",C59, "NetLastTradeToday",, "T") -> 0.93 | J59: =IFERROR(RTD("cqg.rtd", ,"ContractData",C59, "PerCentNetLastTrade",, "T")/100,0) -> 0.01202949166 | K59: =RTD("cqg.rtd", ,"ContractData", C59, "T_CVol",, "T") -> 11806820 | L59: 59 | M59: =RANK($J59,$J$1:J$73)+COUNTIF($J$1:J59,J59)-1 -> 2 | N59: S.US.PYPL | O59: S.US.KEY | P59: =RTD("cqg.rtd", ,"ContractData",O59, "PerCentNetLastTrade",, "T")/100 -> -0.01849775785 | Q59: https://finance.yahoo.com/quote/KEY | T59: 0.01849775785 | V59: =IFERROR(RTD("cqg.rtd", ,"ContractData",O59, "LongDescription",, "T"),"") -> KeyCorp | Y59: -0.01849775785 | AB59: 0 | AE59: 0.01849775785 | AF59: -0.01849775785
A60: =RTD("cqg.rtd", ,"ContractData",C60, "LongDescription",, "T") -> Regions Financial Corp | B60: S.US.RF | C60: S.US.RF | D60: =RTD("cqg.rtd", ,"ContractData",C60, "LongDescription",, "T") -> Regions Financial Corp | E60: =RTD("cqg.rtd", ,"ContractData",C60, "Open",, "T") -> 24.49 | F60: =RTD("cqg.rtd", ,"ContractData",C60, "High",, "T") -> 24.49 | G60: =RTD("cqg.rtd", ,"ContractData",C60, "Low",, "T") -> 24.05 | H60: =RTD("cqg.rtd", ,"ContractData",C60, "LastTradeToday",, "T") -> 24.08 | I60: =RTD("cqg.rtd", ,"ContractData",C60, "NetLastTradeToday",, "T") -> -0.37 | J60: =IFERROR(RTD("cqg.rtd", ,"ContractData",C60, "PerCentNetLastTrade",, "T")/100,0) -> -0.01513292434 | K60: =RTD("cqg.rtd", ,"ContractData", C60, "T_CVol",, "T") -> 4989888 | L60: 60 | M60: =RANK($J60,$J$1:J$73)+COUNTIF($J$1:J60,J60)-1 -> 53 | N60: S.US.RF | O60: S.US.ERIE | P60: =RTD("cqg.rtd", ,"ContractData",O60, "PerCentNetLastTrade",, "T")/100 -> -0.0189452746 | Q60: https://finance.yahoo.com/quote/ERIE | T60: 0.0189452746 | V60: =IFERROR(RTD("cqg.rtd", ,"ContractData",O60, "LongDescription",, "T"),"") -> Erie Indemnity Co | Y60: -0.0189452746 | AB60: 0 | AE60: 0.0189452746 | AF60: -0.0189452746
A61: =RTD("cqg.rtd", ,"ContractData",C61, "LongDescription",, "T") -> Raymond James Fincl Inc | B61: S.US.RJF | C61: S.US.RJF | D61: =RTD("cqg.rtd", ,"ContractData",C61, "LongDescription",, "T") -> Raymond James Fincl Inc | E61: =RTD("cqg.rtd", ,"ContractData",C61, "Open",, "T") -> 167.58 | F61: =RTD("cqg.rtd", ,"ContractData",C61, "High",, "T") -> 167.72 | G61: =RTD("cqg.rtd", ,"ContractData",C61, "Low",, "T") -> 161.42 | H61: =RTD("cqg.rtd", ,"ContractData",C61, "LastTradeToday",, "T") -> 162.42 | I61: =RTD("cqg.rtd", ,"ContractData",C61, "NetLastTradeToday",, "T") -> -5.01 | J61: =IFERROR(RTD("cqg.rtd", ,"ContractData",C61, "PerCentNetLastTrade",, "T")/100,0) -> -0.02992295288 | K61: =RTD("cqg.rtd", ,"ContractData", C61, "T_CVol",, "T") -> 1423326 | L61: 61 | M61: =RANK($J61,$J$1:J$73)+COUNTIF($J$1:J61,J61)-1 -> 73 | N61: S.US.RJF | O61: S.US.MS | P61: =RTD("cqg.rtd", ,"ContractData",O61, "PerCentNetLastTrade",, "T")/100 -> -0.01907415345 | Q61: https://finance.yahoo.com/quote/MS | T61: 0.01907415345 | V61: =IFERROR(RTD("cqg.rtd", ,"ContractData",O61, "LongDescription",, "T"),"") -> Morgan Stanley | Y61: -0.01907415345 | AB61: 0 | AE61: 0.01907415345 | AF61: -0.01907415345
A62: =RTD("cqg.rtd", ,"ContractData",C62, "LongDescription",, "T") -> Charles Schwab Corp | B62: S.US.SCHW | C62: S.US.SCHW | D62: =RTD("cqg.rtd", ,"ContractData",C62, "LongDescription",, "T") -> Charles Schwab Corp | E62: =RTD("cqg.rtd", ,"ContractData",C62, "Open",, "T") -> 81.55 | F62: =RTD("cqg.rtd", ,"ContractData",C62, "High",, "T") -> 81.76 | G62: =RTD("cqg.rtd", ,"ContractData",C62, "Low",, "T") -> 80.26 | H62: =RTD("cqg.rtd", ,"ContractData",C62, "LastTradeToday",, "T") -> 81.17 | I62: =RTD("cqg.rtd", ,"ContractData",C62, "NetLastTradeToday",, "T") -> -2.01 | J62: =IFERROR(RTD("cqg.rtd", ,"ContractData",C62, "PerCentNetLastTrade",, "T")/100,0) -> -0.02416446261 | K62: =RTD("cqg.rtd", ,"ContractData", C62, "T_CVol",, "T") -> 17729632 | L62: 62 | M62: =RANK($J62,$J$1:J$73)+COUNTIF($J$1:J62,J62)-1 -> 70 | N62: S.US.SCHW | O62: S.US.ALL | P62: =RTD("cqg.rtd", ,"ContractData",O62, "PerCentNetLastTrade",, "T")/100 -> -0.01923885618 | Q62: https://finance.yahoo.com/quote/ALL | T62: 0.01923885618 | V62: =IFERROR(RTD("cqg.rtd", ,"ContractData",O62, "LongDescription",, "T"),"") -> Allstate Corporation | Y62: -0.01923885618 | AB62: 0 | AE62: 0.01923885618 | AF62: -0.01923885618
A63: =RTD("cqg.rtd", ,"ContractData",C63, "LongDescription",, "T") -> S&P Global Inc. | B63: S.US.SPGI | C63: S.US.SPGI | D63: =RTD("cqg.rtd", ,"ContractData",C63, "LongDescription",, "T") -> S&P Global Inc. | E63: =RTD("cqg.rtd", ,"ContractData",C63, "Open",, "T") -> 518 | F63: =RTD("cqg.rtd", ,"ContractData",C63, "High",, "T") -> 520.62 | G63: =RTD("cqg.rtd", ,"ContractData",C63, "Low",, "T") -> 513.5 | H63: =RTD("cqg.rtd", ,"ContractData",C63, "LastTradeToday",, "T") -> 515.3 | I63: =RTD("cqg.rtd", ,"ContractData",C63, "NetLastTradeToday",, "T") -> -3.85 | J63: =IFERROR(RTD("cqg.rtd", ,"ContractData",C63, "PerCentNetLastTrade",, "T")/100,0) -> -0.00741596841 | K63: =RTD("cqg.rtd", ,"ContractData", C63, "T_CVol",, "T") -> 1695751 | L63: 63 | M63: =RANK($J63,$J$1:J$73)+COUNTIF($J$1:J63,J63)-1 -> 26 | N63: S.US.SPGI | O63: S.US.NDAQ | P63: =RTD("cqg.rtd", ,"ContractData",O63, "PerCentNetLastTrade",, "T")/100 -> -0.01943974885 | Q63: https://finance.yahoo.com/quote/NDAQ | T63: 0.01943974885 | V63: =IFERROR(RTD("cqg.rtd", ,"ContractData",O63, "LongDescription",, "T"),"") -> Nasdaq, Inc. | Y63: -0.01943974885 | AB63: 0 | AE63: 0.01943974885 | AF63: -0.01943974885
A64: =RTD("cqg.rtd", ,"ContractData",C64, "LongDescription",, "T") -> State Street Corp | B64: S.US.STT | C64: S.US.STT | D64: =RTD("cqg.rtd", ,"ContractData",C64, "LongDescription",, "T") -> State Street Corp | E64: =RTD("cqg.rtd", ,"ContractData",C64, "Open",, "T") -> 99.75 | F64: =RTD("cqg.rtd", ,"ContractData",C64, "High",, "T") -> 99.91 | G64: =RTD("cqg.rtd", ,"ContractData",C64, "Low",, "T") -> 97.75 | H64: =RTD("cqg.rtd", ,"ContractData",C64, "LastTradeToday",, "T") -> 98.05 | I64: =RTD("cqg.rtd", ,"ContractData",C64, "NetLastTradeToday",, "T") -> -1.39 | J64: =IFERROR(RTD("cqg.rtd", ,"ContractData",C64, "PerCentNetLastTrade",, "T")/100,0) -> -0.01397827836 | K64: =RTD("cqg.rtd", ,"ContractData", C64, "T_CVol",, "T") -> 1666851 | L64: 64 | M64: =RANK($J64,$J$1:J$73)+COUNTIF($J$1:J64,J64)-1 -> 51 | N64: S.US.STT | O64: S.US.WFC | P64: =RTD("cqg.rtd", ,"ContractData",O64, "PerCentNetLastTrade",, "T")/100 -> -0.0194620057 | Q64: https://finance.yahoo.com/quote/WFC | T64: 0.0194620057 | V64: =IFERROR(RTD("cqg.rtd", ,"ContractData",O64, "LongDescription",, "T"),"") -> Wells Fargo & Co New | Y64: -0.0194620057 | AB64: 0 | AE64: 0.0194620057 | AF64: -0.0194620057
A65: =RTD("cqg.rtd", ,"ContractData",C65, "LongDescription",, "T") -> Synchrony Financial | B65: S.US.SYF | C65: S.US.SYF | D65: =RTD("cqg.rtd", ,"ContractData",C65, "LongDescription",, "T") -> Synchrony Financial | E65: =RTD("cqg.rtd", ,"ContractData",C65, "Open",, "T") -> 68.05 | F65: =RTD("cqg.rtd", ,"ContractData",C65, "High",, "T") -> 68.05 | G65: =RTD("cqg.rtd", ,"ContractData",C65, "Low",, "T") -> 64.61 | H65: =RTD("cqg.rtd", ,"ContractData",C65, "LastTradeToday",, "T") -> 65.52 | I65: =RTD("cqg.rtd", ,"ContractData",C65, "NetLastTradeToday",, "T") -> -1.97 | J65: =IFERROR(RTD("cqg.rtd", ,"ContractData",C65, "PerCentNetLastTrade",, "T")/100,0) -> -0.02918950956 | K65: =RTD("cqg.rtd", ,"ContractData", C65, "T_CVol",, "T") -> 5396059 | L65: 65 | M65: =RANK($J65,$J$1:J$73)+COUNTIF($J$1:J65,J65)-1 -> 72 | N65: =C65 -> S.US.SYF | O65: S.US.AXP | P65: =RTD("cqg.rtd", ,"ContractData",O65, "PerCentNetLastTrade",, "T")/100 -> -0.02055118856 | Q65: https://finance.yahoo.com/quote/AXP | T65: 0.02055118856 | V65: =IFERROR(RTD("cqg.rtd", ,"ContractData",O65, "LongDescription",, "T"),"") -> American Express Co | Y65: -0.02055118856 | AB65: 0 | AE65: 0.02055118856 | AF65: -0.02055118856
A66: =RTD("cqg.rtd", ,"ContractData",C66, "LongDescription",, "T") -> Truist Financial Corporation | B66: S.US.TFC | C66: S.US.TFC | D66: =RTD("cqg.rtd", ,"ContractData",C66, "LongDescription",, "T") -> Truist Financial Corporation | E66: =RTD("cqg.rtd", ,"ContractData",C66, "Open",, "T") -> 47.68 | F66: =RTD("cqg.rtd", ,"ContractData",C66, "High",, "T") -> 47.72 | G66: =RTD("cqg.rtd", ,"ContractData",C66, "Low",, "T") -> 46.94 | H66: =RTD("cqg.rtd", ,"ContractData",C66, "LastTradeToday",, "T") -> 47.15 | I66: =RTD("cqg.rtd", ,"ContractData",C66, "NetLastTradeToday",, "T") -> -0.53 | J66: =IFERROR(RTD("cqg.rtd", ,"ContractData",C66, "PerCentNetLastTrade",, "T")/100,0) -> -0.01111577181 | K66: =RTD("cqg.rtd", ,"ContractData", C66, "T_CVol",, "T") -> 6493979 | L66: 66 | M66: =RANK($J66,$J$1:J$73)+COUNTIF($J$1:J66,J66)-1 -> 38 | N66: S.US.TFC | O66: =VLOOKUP($L66,$M$1:$N$73,2,FALSE) -> S.US.COF | P66: =RTD("cqg.rtd", ,"ContractData",O66, "PerCentNetLastTrade",, "T")/100 -> -0.02175089809 | Q66: ="https://finance.yahoo.com/quote/"&RIGHT(O66,(LEN(O66)-5)) -> https://finance.yahoo.com/quote/COF | S66: =IF(P66>=0,P66,NA()) ->  | T66: =IF(P66>=0,NA(),-1*P66) -> 0.02175089809 | V66: =IFERROR(RTD("cqg.rtd", ,"ContractData",O66, "LongDescription",, "T"),"") -> Capital One Financl Corp | Y66: =IFERROR(S66,P66) -> -0.02175089809 | AA66: =IF(S66="NA()",0,1) ->  | AB66: =IFERROR(AA66,0) -> 0 | AE66: 0.02175089809 | AF66: =IF(AE66="","",Y66) -> -0.02175089809
A67: =RTD("cqg.rtd", ,"ContractData",C67, "LongDescription",, "T") -> T Rowe Price Group Inc | B67: S.US.TROW | C67: S.US.TROW | D67: =RTD("cqg.rtd", ,"ContractData",C67, "LongDescription",, "T") -> T Rowe Price Group Inc | E67: =RTD("cqg.rtd", ,"ContractData",C67, "Open",, "T") -> 110.5 | F67: =RTD("cqg.rtd", ,"ContractData",C67, "High",, "T") -> 110.82 | G67: =RTD("cqg.rtd", ,"ContractData",C67, "Low",, "T") -> 109.41 | H67: =RTD("cqg.rtd", ,"ContractData",C67, "LastTradeToday",, "T") -> 109.61 | I67: =RTD("cqg.rtd", ,"ContractData",C67, "NetLastTradeToday",, "T") -> -0.52 | J67: =IFERROR(RTD("cqg.rtd", ,"ContractData",C67, "PerCentNetLastTrade",, "T")/100,0) -> -0.004721263846 | K67: =RTD("cqg.rtd", ,"ContractData", C67, "T_CVol",, "T") -> 1240563 | L67: =L66+1 -> 67 | M67: =RANK($J67,$J$1:J$73)+COUNTIF($J$1:J67,J67)-1 -> 20 | N67: S.US.TROW | O67: S.US.ACGL | P67: =RTD("cqg.rtd", ,"ContractData",O67, "PerCentNetLastTrade",, "T")/100 -> -0.02181818182 | Q67: https://finance.yahoo.com/quote/ACGL | T67: 0.02181818182 | V67: =IFERROR(RTD("cqg.rtd", ,"ContractData",O67, "LongDescription",, "T"),"") -> Arch Capital Grp Ltd | Y67: -0.02181818182 | AB67: 0 | AE67: 0.02181818182 | AF67: -0.02181818182
A68: =RTD("cqg.rtd", ,"ContractData",C68, "LongDescription",, "T") -> Travelers Companies, Inc | B68: S.US.TRV | C68: S.US.TRV | D68: =RTD("cqg.rtd", ,"ContractData",C68, "LongDescription",, "T") -> Travelers Companies, Inc | E68: =RTD("cqg.rtd", ,"ContractData",C68, "Open",, "T") -> 245 | F68: =RTD("cqg.rtd", ,"ContractData",C68, "High",, "T") -> 245.19 | G68: =RTD("cqg.rtd", ,"ContractData",C68, "Low",, "T") -> 241.96 | H68: =RTD("cqg.rtd", ,"ContractData",C68, "LastTradeToday",, "T") -> 242.42 | I68: =RTD("cqg.rtd", ,"ContractData",C68, "NetLastTradeToday",, "T") -> -2.77 | J68: =IFERROR(RTD("cqg.rtd", ,"ContractData",C68, "PerCentNetLastTrade",, "T")/100,0) -> -0.01129736123 | K68: =RTD("cqg.rtd", ,"ContractData", C68, "T_CVol",, "T") -> 954024 | L68: 68 | M68: =RANK($J68,$J$1:J$73)+COUNTIF($J$1:J68,J68)-1 -> 41 | N68: S.US.TRV | O68: S.US.DFS | P68: =RTD("cqg.rtd", ,"ContractData",O68, "PerCentNetLastTrade",, "T")/100 -> -0.02182509886 | Q68: https://finance.yahoo.com/quote/DFS | T68: 0.02182509886 | V68: =IFERROR(RTD("cqg.rtd", ,"ContractData",O68, "LongDescription",, "T"),"") -> Discover Financial Services | Y68: -0.02182509886 | AB68: 0 | AE68: 0.02182509886 | AF68: -0.02182509886
A69: =RTD("cqg.rtd", ,"ContractData",C69, "LongDescription",, "T") -> U S Bancorp | B69: S.US.USB | C69: S.US.USB | D69: =RTD("cqg.rtd", ,"ContractData",C69, "LongDescription",, "T") -> U S Bancorp | E69: =RTD("cqg.rtd", ,"ContractData",C69, "Open",, "T") -> 47.28 | F69: =RTD("cqg.rtd", ,"ContractData",C69, "High",, "T") -> 47.32 | G69: =RTD("cqg.rtd", ,"ContractData",C69, "Low",, "T") -> 46.47 | H69: =RTD("cqg.rtd", ,"ContractData",C69, "LastTradeToday",, "T") -> 46.88 | I69: =RTD("cqg.rtd", ,"ContractData",C69, "NetLastTradeToday",, "T") -> -0.35 | J69: =IFERROR(RTD("cqg.rtd", ,"ContractData",C69, "PerCentNetLastTrade",, "T")/100,0) -> -0.007410544146 | K69: =RTD("cqg.rtd", ,"ContractData", C69, "T_CVol",, "T") -> 8457723 | L69: 69 | M69: =RANK($J69,$J$1:J$73)+COUNTIF($J$1:J69,J69)-1 -> 25 | N69: S.US.USB | O69: S.US.NTRS | P69: =RTD("cqg.rtd", ,"ContractData",O69, "PerCentNetLastTrade",, "T")/100 -> -0.0221125892 | Q69: https://finance.yahoo.com/quote/NTRS | T69: 0.0221125892 | V69: =IFERROR(RTD("cqg.rtd", ,"ContractData",O69, "LongDescription",, "T"),"") -> Northern Trust Corp | Y69: -0.0221125892 | AB69: 0 | AE69: 0.0221125892 | AF69: -0.0221125892
A70: =RTD("cqg.rtd", ,"ContractData",C70, "LongDescription",, "T") -> Visa Inc. | B70: S.US.V | C70: S.US.V | D70: =RTD("cqg.rtd", ,"ContractData",C70, "LongDescription",, "T") -> Visa Inc. | E70: =RTD("cqg.rtd", ,"ContractData",C70, "Open",, "T") -> 348.7 | F70: =RTD("cqg.rtd", ,"ContractData",C70, "High",, "T") -> 351.9 | G70: =RTD("cqg.rtd", ,"ContractData",C70, "Low",, "T") -> 347.7 | H70: =RTD("cqg.rtd", ,"ContractData",C70, "LastTradeToday",, "T") -> 351.23 | I70: =RTD("cqg.rtd", ,"ContractData",C70, "NetLastTradeToday",, "T") -> 3.21 | J70: =IFERROR(RTD("cqg.rtd", ,"ContractData",C70, "PerCentNetLastTrade",, "T")/100,0) -> 0.009223607839 | K70: =RTD("cqg.rtd", ,"ContractData", C70, "T_CVol",, "T") -> 6059090 | L70: 70 | M70: =RANK($J70,$J$1:J$73)+COUNTIF($J$1:J70,J70)-1 -> 3 | N70: S.US.V | O70: S.US.SCHW | P70: =RTD("cqg.rtd", ,"ContractData",O70, "PerCentNetLastTrade",, "T")/100 -> -0.02416446261 | Q70: https://finance.yahoo.com/quote/SCHW | T70: 0.02416446261 | V70: =IFERROR(RTD("cqg.rtd", ,"ContractData",O70, "LongDescription",, "T"),"") -> Charles Schwab Corp | Y70: -0.02416446261 | AB70: 0 | AE70: 0.02416446261 | AF70: -0.02416446261
A71: =RTD("cqg.rtd", ,"ContractData",C71, "LongDescription",, "T") -> Wells Fargo & Co New | B71: S.US.WFC | C71: S.US.WFC | D71: =RTD("cqg.rtd", ,"ContractData",C71, "LongDescription",, "T") -> Wells Fargo & Co New | E71: =RTD("cqg.rtd", ,"ContractData",C71, "Open",, "T") -> 80.46 | F71: =RTD("cqg.rtd", ,"ContractData",C71, "High",, "T") -> 80.57 | G71: =RTD("cqg.rtd", ,"ContractData",C71, "Low",, "T") -> 78.25 | H71: =RTD("cqg.rtd", ,"ContractData",C71, "LastTradeToday",, "T") -> 79.1 | I71: =RTD("cqg.rtd", ,"ContractData",C71, "NetLastTradeToday",, "T") -> -1.57 | J71: =IFERROR(RTD("cqg.rtd", ,"ContractData",C71, "PerCentNetLastTrade",, "T")/100,0) -> -0.0194620057 | K71: =RTD("cqg.rtd", ,"ContractData", C71, "T_CVol",, "T") -> 18355126 | L71: 71 | M71: =RANK($J71,$J$1:J$73)+COUNTIF($J$1:J71,J71)-1 -> 64 | N71: S.US.WFC | O71: S.US.MKTX | P71: =RTD("cqg.rtd", ,"ContractData",O71, "PerCentNetLastTrade",, "T")/100 -> -0.02567413219 | Q71: https://finance.yahoo.com/quote/MKTX | T71: 0.02567413219 | V71: =IFERROR(RTD("cqg.rtd", ,"ContractData",O71, "LongDescription",, "T"),"") -> MarketAxcess Inc | Y71: -0.02567413219 | AB71: 0 | AE71: 0.02567413219 | AF71: -0.02567413219
A72: =RTD("cqg.rtd", ,"ContractData",C72, "LongDescription",, "T") -> WR Berkley Corp | B72: S.US.WRB | C72: S.US.WRB | D72: =RTD("cqg.rtd", ,"ContractData",C72, "LongDescription",, "T") -> WR Berkley Corp | E72: =RTD("cqg.rtd", ,"ContractData",C72, "Open",, "T") -> 61.33 | F72: =RTD("cqg.rtd", ,"ContractData",C72, "High",, "T") -> 61.47 | G72: =RTD("cqg.rtd", ,"ContractData",C72, "Low",, "T") -> 60.53 | H72: =RTD("cqg.rtd", ,"ContractData",C72, "LastTradeToday",, "T") -> 60.82 | I72: =RTD("cqg.rtd", ,"ContractData",C72, "NetLastTradeToday",, "T") -> -0.69 | J72: =IFERROR(RTD("cqg.rtd", ,"ContractData",C72, "PerCentNetLastTrade",, "T")/100,0) -> -0.01121768818 | K72: =RTD("cqg.rtd", ,"ContractData", C72, "T_CVol",, "T") -> 1455230 | L72: 72 | M72: =RANK($J72,$J$1:J$73)+COUNTIF($J$1:J72,J72)-1 -> 39 | N72: S.US.WRB | O72: S.US.SYF | P72: =RTD("cqg.rtd", ,"ContractData",O72, "PerCentNetLastTrade",, "T")/100 -> -0.02918950956 | Q72: https://finance.yahoo.com/quote/SYF | T72: 0.02918950956 | V72: =IFERROR(RTD("cqg.rtd", ,"ContractData",O72, "LongDescription",, "T"),"") -> Synchrony Financial | Y72: -0.02918950956 | AB72: 0 | AE72: 0.02918950956 | AF72: -0.02918950956
A73: =RTD("cqg.rtd", ,"ContractData",C73, "LongDescription",, "T") -> Willis Towers Watson | B73: S.US.WTW | C73: S.US.WTW | D73: =RTD("cqg.rtd", ,"ContractData",C73, "LongDescription",, "T") -> Willis Towers Watson | E73: =RTD("cqg.rtd", ,"ContractData",C73, "Open",, "T") -> 326.79 | F73: =RTD("cqg.rtd", ,"ContractData",C73, "High",, "T") -> 326.79 | G73: =RTD("cqg.rtd", ,"ContractData",C73, "Low",, "T") -> 321.59 | H73: =RTD("cqg.rtd", ,"ContractData",C73, "LastTradeToday",, "T") -> 325.18 | I73: =RTD("cqg.rtd", ,"ContractData",C73, "NetLastTradeToday",, "T") -> -0.61 | J73: =IFERROR(RTD("cqg.rtd", ,"ContractData",C73, "PerCentNetLastTrade",, "T")/100,0) -> -0.001872371773 | K73: =RTD("cqg.rtd", ,"ContractData", C73, "T_CVol",, "T") -> 451371 | L73: 73 | M73: =RANK($J73,$J$1:J$73)+COUNTIF($J$1:J73,J73)-1 -> 15 | N73: S.US.WTW | O73: S.US.RJF | P73: =RTD("cqg.rtd", ,"ContractData",O73, "PerCentNetLastTrade",, "T")/100 -> -0.02992295288 | Q73: https://finance.yahoo.com/quote/RJF | T73: 0.02992295288 | V73: =IFERROR(RTD("cqg.rtd", ,"ContractData",O73, "LongDescription",, "T"),"") -> Raymond James Fincl Inc | Y73: -0.02992295288 | AB73: 0 | AE73: 0.02992295288 | AF73: -0.02992295288
AE138: =IFERROR(T138,"") -> 0 | AF138: =IF(AE138="","",Y138) -> 0
AB170: =SUM(AB1:AB138)/73 -> 0.1780821918
